Publisher Label,Publisher URI,"Supplier ID","Supplier","Invoice No.","Amount (£)","Purpose","Transaction Number","Payment Date","Organisational Unit","Cost Centre(T)","Internal Category Number"
"Wolverhampton City Council","http://opendatacommunities.org/id/metropolitan-district-council/wolverhampton","713246","Midland Foods Limited","1131999","51.49","Provisions (Not for resale)","130198833","20/12/2017","Older People Provider Services","Blakenhall Resource Centre","R4101"
"Wolverhampton City Council","http://opendatacommunities.org/id/metropolitan-district-council/wolverhampton","713246","Midland Foods Limited","10586","-43.24","Provisions (Not for resale)","130198660","13/12/2017","Older People Provider Services","Bradley Lodge Resource Centre","R4101"
"Wolverhampton City Council","http://opendatacommunities.org/id/metropolitan-district-council/wolverhampton","713246","Midland Foods Limited","1129639","124.93","Provisions (Not for resale)","130198829","15/12/2017","Older People Provider Services","Bradley Lodge Resource Centre","R4101"
"Wolverhampton City Council","http://opendatacommunities.org/id/metropolitan-district-council/wolverhampton","713246","Midland Foods Limited","1130054","21.66","Provisions (Not for resale)","130198830","15/12/2017","Older People Provider Services","Bradley Lodge Resource Centre","R4101"
"Wolverhampton City Council","http://opendatacommunities.org/id/metropolitan-district-council/wolverhampton","713258","MTH Cleaning Equipment Ltd","MTH159136","112.50","Services - Professional Fees","190400784","08/12/2017","Fleet Services","Fleet Management","R4400"
"Wolverhampton City Council","http://opendatacommunities.org/id/metropolitan-district-council/wolverhampton","713258","MTH Cleaning Equipment Ltd","MTH159136","65.92","Services - Professional Fees","190400784","08/12/2017","Fleet Services","Fleet Management","R4400"
"Wolverhampton City Council","http://opendatacommunities.org/id/metropolitan-district-council/wolverhampton","713286","Energas","4583613","8.63","Equipment - R & M","190402031","13/12/2017","Fleet Services","Fleet Management","R4003"
"Wolverhampton City Council","http://opendatacommunities.org/id/metropolitan-district-council/wolverhampton","713286","Energas","4583613","21.72","Equipment - R & M","190402031","13/12/2017","Fleet Services","Fleet Management","R4003"
"Wolverhampton City Council","http://opendatacommunities.org/id/metropolitan-district-council/wolverhampton","713286","Energas","4583613","17.26","Equipment - R & M","190402031","13/12/2017","Fleet Services","Fleet Management","R4003"
"Wolverhampton City Council","http://opendatacommunities.org/id/metropolitan-district-council/wolverhampton","713307","Inform CPl Limited","INV50834","7,000.00","Services - Professional Fees","130200333","27/12/2017","Revenues & Benefits","Revenues","R4400"
"Wolverhampton City Council","http://opendatacommunities.org/id/metropolitan-district-council/wolverhampton","713386","NLA Media Access","Q399782","475.00","Services - General Licences","130198441","27/12/2017","Visitor Economy","Arts Publicity","R4402"
"Wolverhampton City Council","http://opendatacommunities.org/id/metropolitan-district-council/wolverhampton","713399","Autocraft Equipment Ltd","119300","12.50","Equipment - Purchase","190398989","06/12/2017","Fleet Services","Fleet Management","R4000"
"Wolverhampton City Council","http://opendatacommunities.org/id/metropolitan-district-council/wolverhampton","713399","Autocraft Equipment Ltd","119300","90.00","Equipment - Purchase","190398989","06/12/2017","Fleet Services","Fleet Management","R4000"
"Wolverhampton City Council","http://opendatacommunities.org/id/metropolitan-district-council/wolverhampton","713506","Equita Limited","1014341","75.00","Bailiff Action","130198351","08/12/2017","Parking Services","Parking Enforcement","R9382"
"Wolverhampton City Council","http://opendatacommunities.org/id/metropolitan-district-council/wolverhampton","713506","Equita Limited","1014892","60.00","Bailiff Action","130198350","08/12/2017","Parking Services","Parking Enforcement","R9382"
"Wolverhampton City Council","http://opendatacommunities.org/id/metropolitan-district-council/wolverhampton","713506","Equita Limited","1016022","45.00","Bailiff Action","130198348","20/12/2017","Parking Services","Parking Enforcement","R9382"
"Wolverhampton City Council","http://opendatacommunities.org/id/metropolitan-district-council/wolverhampton","713567","Yarrington Limited","14578","800.00","Marketing \ Non-staff advertising","130195610","06/12/2017","Corporate Communications","Communications & Marketing - General","R4317"
"Wolverhampton City Council","http://opendatacommunities.org/id/metropolitan-district-council/wolverhampton","713637","St Mary�s Catholic Primary Academy","EYPP Autumn 2017","1,001.70","TPP - Private Nursery Education Funding","190404359","20/12/2017","Early Years","Early Years Pupil Premium","R5035"
"Wolverhampton City Council","http://opendatacommunities.org/id/metropolitan-district-council/wolverhampton","713637","St Mary�s Catholic Primary Academy","St Mary�s Catholic DAF Payment x 1","615.00","Grant Payments","190404300","20/12/2017","Early Years","Early Years Disability Access Fund (DAF)","R4700"
"Wolverhampton City Council","http://opendatacommunities.org/id/metropolitan-district-council/wolverhampton","713638","Corpus Christi Catholic Primary Academy","EYPP Autumn 2017","556.50","TPP - Private Nursery Education Funding","190404359","20/12/2017","Early Years","Early Years Pupil Premium","R5035"
"Wolverhampton City Council","http://opendatacommunities.org/id/metropolitan-district-council/wolverhampton","713639","St Martins Multi Academy Trust","EYPP Autumn 2017","2,893.80","TPP - Private Nursery Education Funding","190404359","20/12/2017","Early Years","Early Years Pupil Premium","R5035"
"Wolverhampton City Council","http://opendatacommunities.org/id/metropolitan-district-council/wolverhampton","713640","Field View Academy","EYPP Autumn 2017","1,001.70","TPP - Private Nursery Education Funding","190404359","20/12/2017","Early Years","Early Years Pupil Premium","R5035"
"Wolverhampton City Council","http://opendatacommunities.org/id/metropolitan-district-council/wolverhampton","713861","SecurePro Ltd","1688","415.00","Training Expenses","130197490","08/12/2017","Skills","IMPACT","R1650"
"Wolverhampton City Council","http://opendatacommunities.org/id/metropolitan-district-council/wolverhampton","713882","Frontier Plastics Ltd","N56087","386.40","TPP - Public Health Contracts","130191423","21/12/2017","Contracts","Alcohol and Drug","R5060"
"Wolverhampton City Council","http://opendatacommunities.org/id/metropolitan-district-council/wolverhampton","713882","Frontier Plastics Ltd","N56087","-386.40","TPP - Public Health Contracts","130191423","21/12/2017","Contracts","Alcohol and Drug","R5060"
"Wolverhampton City Council","http://opendatacommunities.org/id/metropolitan-district-council/wolverhampton","713882","Frontier Plastics Ltd","N56087","386.40","TPP - Public Health Contracts","130191423","21/12/2017","Contracts","Alcohol and Drug","R5060"
"Wolverhampton City Council","http://opendatacommunities.org/id/metropolitan-district-council/wolverhampton","713882","Frontier Plastics Ltd","N55412","3,284.94","TPP - Public Health Contracts","130197706","21/12/2017","Contracts","Alcohol and Drug","R5060"
"Wolverhampton City Council","http://opendatacommunities.org/id/metropolitan-district-council/wolverhampton","713882","Frontier Plastics Ltd","N55412","-3,284.94","TPP - Public Health Contracts","130197706","21/12/2017","Contracts","Alcohol and Drug","R5060"
"Wolverhampton City Council","http://opendatacommunities.org/id/metropolitan-district-council/wolverhampton","713882","Frontier Plastics Ltd","N55412","3,299.94","TPP - Public Health Contracts","130197706","21/12/2017","Contracts","Alcohol and Drug","R5060"
"Wolverhampton City Council","http://opendatacommunities.org/id/metropolitan-district-council/wolverhampton","713882","Frontier Plastics Ltd","N81567","-1,543.50","TPP - Public Health Contracts","130193922","20/12/2017","Contracts","Alcohol and Drug","R5060"
"Wolverhampton City Council","http://opendatacommunities.org/id/metropolitan-district-council/wolverhampton","713882","Frontier Plastics Ltd","N81567","1,543.50","TPP - Public Health Contracts","130193922","20/12/2017","Contracts","Alcohol and Drug","R5060"
"Wolverhampton City Council","http://opendatacommunities.org/id/metropolitan-district-council/wolverhampton","713882","Frontier Plastics Ltd","N81567","-1,543.50","TPP - Public Health Contracts","130193922","20/12/2017","Contracts","Alcohol and Drug","R5060"
"Wolverhampton City Council","http://opendatacommunities.org/id/metropolitan-district-council/wolverhampton","713882","Frontier Plastics Ltd","N55529","587.56","TPP - Public Health Contracts","130197708","21/12/2017","Contracts","Alcohol and Drug","R5060"
"Wolverhampton City Council","http://opendatacommunities.org/id/metropolitan-district-council/wolverhampton","713882","Frontier Plastics Ltd","N55529","587.56","TPP - Public Health Contracts","130197708","21/12/2017","Contracts","Alcohol and Drug","R5060"
"Wolverhampton City Council","http://opendatacommunities.org/id/metropolitan-district-council/wolverhampton","713882","Frontier Plastics Ltd","N55529","-587.56","TPP - Public Health Contracts","130197708","21/12/2017","Contracts","Alcohol and Drug","R5060"
"Wolverhampton City Council","http://opendatacommunities.org/id/metropolitan-district-council/wolverhampton","713882","Frontier Plastics Ltd","N55288","5,075.91","TPP - Public Health Contracts","130197705","20/12/2017","Contracts","Alcohol and Drug","R5060"
"Wolverhampton City Council","http://opendatacommunities.org/id/metropolitan-district-council/wolverhampton","713882","Frontier Plastics Ltd","N55288","-5,075.91","TPP - Public Health Contracts","130197705","20/12/2017","Contracts","Alcohol and Drug","R5060"
"Wolverhampton City Council","http://opendatacommunities.org/id/metropolitan-district-council/wolverhampton","713882","Frontier Plastics Ltd","N55288","5,075.91","TPP - Public Health Contracts","130197705","20/12/2017","Contracts","Alcohol and Drug","R5060"
"Wolverhampton City Council","http://opendatacommunities.org/id/metropolitan-district-council/wolverhampton","713882","Frontier Plastics Ltd","N55439","66.80","TPP - Public Health Contracts","130197707","21/12/2017","Contracts","Alcohol and Drug","R5060"
"Wolverhampton City Council","http://opendatacommunities.org/id/metropolitan-district-council/wolverhampton","713882","Frontier Plastics Ltd","N55439","-66.80","TPP - Public Health Contracts","130197707","21/12/2017","Contracts","Alcohol and Drug","R5060"
"Wolverhampton City Council","http://opendatacommunities.org/id/metropolitan-district-council/wolverhampton","713882","Frontier Plastics Ltd","N55439","66.80","TPP - Public Health Contracts","130197707","21/12/2017","Contracts","Alcohol and Drug","R5060"
"Wolverhampton City Council","http://opendatacommunities.org/id/metropolitan-district-council/wolverhampton","713911","Total Reclaims Demolition Ltd","4895","12,012.00","Construction and Conversion","130196994","06/12/2017","-","Westside","C1100"
"Wolverhampton City Council","http://opendatacommunities.org/id/metropolitan-district-council/wolverhampton","713924","St Michaels Catholic Academy & Nursery","EYPP Autumn 2017","222.60","TPP - Private Nursery Education Funding","190404359","20/12/2017","Early Years","Early Years Pupil Premium","R5035"
"Wolverhampton City Council","http://opendatacommunities.org/id/metropolitan-district-council/wolverhampton","713924","St Michaels Catholic Academy & Nursery","T42 Autumn 17 Inst 1&2 Rising 3�s","943.20","Grant Payments","190404087","20/12/2017","Early Years","Early Years Entitlement Funding for Disadvantaged 2 Year Olds","R4700"
"Wolverhampton City Council","http://opendatacommunities.org/id/metropolitan-district-council/wolverhampton","713946","Lorraine McCarthy","LM/LT/4","2,437.50","Services - Consultants","130194528","01/12/2017","School Planning & Resources","Learning Technologies","R4404"
"Wolverhampton City Council","http://opendatacommunities.org/id/metropolitan-district-council/wolverhampton","713985","Parker Rose Limited","1048/aa/sh/007","1,475.00","No Recourse to Public Funds","130197491","13/12/2017","Child Protection","CIN/CP Social Work Unit - Area 4","R6314"
"Wolverhampton City Council","http://opendatacommunities.org/id/metropolitan-district-council/wolverhampton","713985","Parker Rose Limited","1048/aa/sh/007","-1,475.00","No Recourse to Public Funds","130197491","13/12/2017","Child Protection","CIN/CP Social Work Unit - Area 4","R6314"
"Wolverhampton City Council","http://opendatacommunities.org/id/metropolitan-district-council/wolverhampton","713985","Parker Rose Limited","1048/aa/sh/007","1,475.00","No Recourse to Public Funds","130197491","13/12/2017","Child Protection","CIN/CP Social Work Unit - Area 4","R6314"
"Wolverhampton City Council","http://opendatacommunities.org/id/metropolitan-district-council/wolverhampton","713989","Service Point(Trading division of Paragon Group uk Ltd)","92307907","435.00","Marketing \ Non-staff advertising","130198300","27/12/2017","Housing","Wholly Owned Company - Operations","R4317"
"Wolverhampton City Council","http://opendatacommunities.org/id/metropolitan-district-council/wolverhampton","713991","Docu-finish Solutions Ltd","2894","593.00","Equipment - R & M","130198301","27/12/2017","ICTS","Document Centre - General","R4003"
"Wolverhampton City Council","http://opendatacommunities.org/id/metropolitan-district-council/wolverhampton","713994","Mrs Jaswinder Hothi","032","450.00","Accommodation Costs","130198302","27/12/2017","Child Protection","CIN/CP Social Work Unit - Area 5","R4900"
"Wolverhampton City Council","http://opendatacommunities.org/id/metropolitan-district-council/wolverhampton","714006","Everything ID - Biotects Ltd","16408","35.00","Equipment - Purchase","130197324","13/12/2017","Adult Education","Service Wide","R4000"
"Wolverhampton City Council","http://opendatacommunities.org/id/metropolitan-district-council/wolverhampton","714006","Everything ID - Biotects Ltd","16408","60.00","Equipment - Purchase","130197324","13/12/2017","Adult Education","Service Wide","R4000"
"Wolverhampton City Council","http://opendatacommunities.org/id/metropolitan-district-council/wolverhampton","714006","Everything ID - Biotects Ltd","16408","135.00","Equipment - Purchase","130197324","13/12/2017","Adult Education","Service Wide","R4000"
"Wolverhampton City Council","http://opendatacommunities.org/id/metropolitan-district-council/wolverhampton","714006","Everything ID - Biotects Ltd","16408","221.94","Equipment - Purchase","130197324","13/12/2017","Adult Education","Service Wide","R4000"
"Wolverhampton City Council","http://opendatacommunities.org/id/metropolitan-district-council/wolverhampton","714035","Penny Hydraulics Limited","135967","350.00","Services - Professional Fees","130198109","27/12/2017","Visitor Economy","Collections & Conservation","R4400"
"Wolverhampton City Council","http://opendatacommunities.org/id/metropolitan-district-council/wolverhampton","714048","Lisa Cawthorn","62","388.70","Services - Professional Fees","130195983","01/12/2017","Looked After Children","Panel Expenses Fostering & Adoption","R4400"
"Wolverhampton City Council","http://opendatacommunities.org/id/metropolitan-district-council/wolverhampton","714048","Lisa Cawthorn","62","-388.70","Services - Professional Fees","130195983","01/12/2017","Looked After Children","Panel Expenses Fostering & Adoption","R4400"
"Wolverhampton City Council","http://opendatacommunities.org/id/metropolitan-district-council/wolverhampton","714048","Lisa Cawthorn","62","388.70","Services - Professional Fees","130195983","01/12/2017","Looked After Children","Panel Expenses Fostering & Adoption","R4400"
"Wolverhampton City Council","http://opendatacommunities.org/id/metropolitan-district-council/wolverhampton","714127","Flavor of paradise Caf�","1461","600.00","Catering","130199044","20/12/2017","Strategic Organisation Development","Service Development Team","R4100"
"Wolverhampton City Council","http://opendatacommunities.org/id/metropolitan-district-council/wolverhampton","714127","Flavor of paradise Caf�","1461","-600.00","Catering","130199044","20/12/2017","Strategic Organisation Development","Service Development Team","R4100"
"Wolverhampton City Council","http://opendatacommunities.org/id/metropolitan-district-council/wolverhampton","714127","Flavor of paradise Caf�","1461","600.00","Catering","130199044","20/12/2017","Strategic Organisation Development","Service Development Team","R4100"
"Wolverhampton City Council","http://opendatacommunities.org/id/metropolitan-district-council/wolverhampton","714187","Hortons� Estate Limited","65514","1,500.00","Rent","130198442","13/12/2017","Skills","Connexions Contract","R2200"
"Wolverhampton City Council","http://opendatacommunities.org/id/metropolitan-district-council/wolverhampton","714192","The Franking Machine Company Ltd","17545","239.50","Equipment - R & M","130196844","08/12/2017","ICTS","Document Centre - General","R4003"
"Wolverhampton City Council","http://opendatacommunities.org/id/metropolitan-district-council/wolverhampton","714193","Leighton Best Consultancy","17/0145/SAG","310.00","Grants paid out","190400175","15/12/2017","-","Disabled Facilities Grants","C5000"
"Wolverhampton City Council","http://opendatacommunities.org/id/metropolitan-district-council/wolverhampton","714227","Dr Elizabeth Ball","32","259.35","TPP - Public Health Contracts","130198303","13/12/2017","Contracts","Alcohol and Drug","R5060"
"Wolverhampton City Council","http://opendatacommunities.org/id/metropolitan-district-council/wolverhampton","714229","Katie Miller","804000383","750.00","Services - Professional Fees","130200336","27/12/2017","Legal Services","Centralised External Legal Costs","R4400"
"Wolverhampton City Council","http://opendatacommunities.org/id/metropolitan-district-council/wolverhampton","714253","Regeneris Consulting Ltd","2017/4609","4,357.50","Services - Professional Fees","130198304","27/12/2017","Planning","Planning","R4400"
"Wolverhampton City Council","http://opendatacommunities.org/id/metropolitan-district-council/wolverhampton","714260","Liberty Support  / SevaSupport Ltd","243220171219","4,142.60","TPP - Supported Living","190404753","20/12/2017","Learning Disabilities Care Purchasing","LD Care Purchasing (Spot Placements)","R5422"
"Wolverhampton City Council","http://opendatacommunities.org/id/metropolitan-district-council/wolverhampton","714260","Liberty Support  / SevaSupport Ltd","242020171219","936.00","TPP - Home Care","190404745","20/12/2017","Mental Health Assesment & Care Management","MH Care Purchasing (Spot Placements)","R5420"
"Wolverhampton City Council","http://opendatacommunities.org/id/metropolitan-district-council/wolverhampton","714260","Liberty Support  / SevaSupport Ltd","242420171219","520.00","TPP - Home Care","190404749","20/12/2017","Mental Health Assesment & Care Management","MH Care Purchasing (Spot Placements)","R5420"
"Wolverhampton City Council","http://opendatacommunities.org/id/metropolitan-district-council/wolverhampton","714260","Liberty Support  / SevaSupport Ltd","243320171219","1,134.00","TPP - Supported Living","190404754","20/12/2017","Learning Disabilities Care Purchasing","LD Care Purchasing (Spot Placements)","R5422"
"Wolverhampton City Council","http://opendatacommunities.org/id/metropolitan-district-council/wolverhampton","714260","Liberty Support  / SevaSupport Ltd","242320171219","780.00","TPP - Home Care","190404748","20/12/2017","Learning Disabilities Care Purchasing","LD Care Purchasing (Spot Placements)","R5420"
"Wolverhampton City Council","http://opendatacommunities.org/id/metropolitan-district-council/wolverhampton","714260","Liberty Support  / SevaSupport Ltd","243420171219","4,066.32","TPP - Supported Living","190404755","20/12/2017","Older People Care Purchasing","OP Care Purchasing (Spot Placements)","R5422"
"Wolverhampton City Council","http://opendatacommunities.org/id/metropolitan-district-council/wolverhampton","714260","Liberty Support  / SevaSupport Ltd","242720171219","936.00","TPP - Home Care","190404751","20/12/2017","Mental Health Assesment & Care Management","MH Care Purchasing (Spot Placements)","R5420"
"Wolverhampton City Council","http://opendatacommunities.org/id/metropolitan-district-council/wolverhampton","714260","Liberty Support  / SevaSupport Ltd","243020171219","780.00","TPP - Home Care","190404752","20/12/2017","Learning Disabilities Care Purchasing","LD Care Purchasing (Spot Placements)","R5420"
"Wolverhampton City Council","http://opendatacommunities.org/id/metropolitan-district-council/wolverhampton","714260","Liberty Support  / SevaSupport Ltd","242220171219","468.00","TPP - Home Care","190404747","20/12/2017","Learning Disabilities Care Purchasing","LD Care Purchasing (Spot Placements)","R5420"
"Wolverhampton City Council","http://opendatacommunities.org/id/metropolitan-district-council/wolverhampton","714260","Liberty Support  / SevaSupport Ltd","242120171219","156.00","TPP - Home Care","190404746","20/12/2017","Learning Disabilities Care Purchasing","LD Care Purchasing (Spot Placements)","R5420"
"Wolverhampton City Council","http://opendatacommunities.org/id/metropolitan-district-council/wolverhampton","714260","Liberty Support  / SevaSupport Ltd","242620171219","936.00","TPP - Home Care","190404750","20/12/2017","Mental Health Assesment & Care Management","MH Care Purchasing (Spot Placements)","R5420"
"Wolverhampton City Council","http://opendatacommunities.org/id/metropolitan-district-council/wolverhampton","714276","Speller Metcalfe Malvern Limited","CIN7067","28,792.95","Construction and Conversion","130198662","13/12/2017","-","Westside","C1100"
"Wolverhampton City Council","http://opendatacommunities.org/id/metropolitan-district-council/wolverhampton","714276","Speller Metcalfe Malvern Limited","CIN7056","221,254.99","Construction and Conversion","130197149","13/12/2017","-","South Side","C1100"
"Wolverhampton City Council","http://opendatacommunities.org/id/metropolitan-district-council/wolverhampton","714276","Speller Metcalfe Malvern Limited","CIN7055","405,921.87","Construction and Conversion","130197148","01/12/2017","-","South Side","C1100"
"Wolverhampton City Council","http://opendatacommunities.org/id/metropolitan-district-council/wolverhampton","714276","Speller Metcalfe Malvern Limited","CIN7060","22,782.77","Construction and Conversion","130197887","06/12/2017","-","Black Country Growth Deal � Cultural Programme","C1100"
"Wolverhampton City Council","http://opendatacommunities.org/id/metropolitan-district-council/wolverhampton","714279","Tusker","SCR031276","-77.01","Services - Professional Fees","130195984","13/12/2017","Human Resources","Salary Sacrifice Schemes","R4400"
"Wolverhampton City Council","http://opendatacommunities.org/id/metropolitan-district-council/wolverhampton","714279","Tusker","SIN319026","25,498.14","Services - Professional Fees","130194421","13/12/2017","Human Resources","Salary Sacrifice Schemes","R4400"
"Wolverhampton City Council","http://opendatacommunities.org/id/metropolitan-district-council/wolverhampton","714279","Tusker","SIN319026","-25,498.14","Services - Professional Fees","130194421","13/12/2017","Human Resources","Salary Sacrifice Schemes","R4400"
"Wolverhampton City Council","http://opendatacommunities.org/id/metropolitan-district-council/wolverhampton","714279","Tusker","SIN319026","7,315.32","Services - Professional Fees","130194421","13/12/2017","Human Resources","Salary Sacrifice Schemes","R4400"
"Wolverhampton City Council","http://opendatacommunities.org/id/metropolitan-district-council/wolverhampton","714279","Tusker","SIN319026","8,778.38","Services - Professional Fees","130194421","13/12/2017","Human Resources","Salary Sacrifice Schemes","R4400"
"Wolverhampton City Council","http://opendatacommunities.org/id/metropolitan-district-council/wolverhampton","714279","Tusker","SIN319026","3,476.59","Services - Professional Fees","130194421","13/12/2017","Human Resources","Salary Sacrifice Schemes","R4400"
"Wolverhampton City Council","http://opendatacommunities.org/id/metropolitan-district-council/wolverhampton","714279","Tusker","SIN319026","3,720.72","Services - Professional Fees","130194421","13/12/2017","Human Resources","Salary Sacrifice Schemes","R4400"
"Wolverhampton City Council","http://opendatacommunities.org/id/metropolitan-district-council/wolverhampton","714279","Tusker","SIN321400","68.48","Services - Professional Fees","130195058","01/12/2017","Human Resources","Salary Sacrifice Schemes","R4400"
"Wolverhampton City Council","http://opendatacommunities.org/id/metropolitan-district-council/wolverhampton","714279","Tusker","SIN321400","457.22","Services - Professional Fees","130195058","01/12/2017","Human Resources","Salary Sacrifice Schemes","R4400"
"Wolverhampton City Council","http://opendatacommunities.org/id/metropolitan-district-council/wolverhampton","714279","Tusker","SIN321400","-457.22","Services - Professional Fees","130195058","01/12/2017","Human Resources","Salary Sacrifice Schemes","R4400"
"Wolverhampton City Council","http://opendatacommunities.org/id/metropolitan-district-council/wolverhampton","714279","Tusker","SIN321400","163.58","Services - Professional Fees","130195058","01/12/2017","Human Resources","Salary Sacrifice Schemes","R4400"
"Wolverhampton City Council","http://opendatacommunities.org/id/metropolitan-district-council/wolverhampton","714279","Tusker","SIN321400","196.29","Services - Professional Fees","130195058","01/12/2017","Human Resources","Salary Sacrifice Schemes","R4400"
"Wolverhampton City Council","http://opendatacommunities.org/id/metropolitan-district-council/wolverhampton","714279","Tusker","SIN321400","61.59","Services - Professional Fees","130195058","01/12/2017","Human Resources","Salary Sacrifice Schemes","R4400"
"Wolverhampton City Council","http://opendatacommunities.org/id/metropolitan-district-council/wolverhampton","714279","Tusker","SIN327337","488.79","Services - Professional Fees","130196995","15/12/2017","Human Resources","Salary Sacrifice Schemes","R4400"
"Wolverhampton City Council","http://opendatacommunities.org/id/metropolitan-district-council/wolverhampton","714279","Tusker","SIN327337","-488.79","Services - Professional Fees","130196995","15/12/2017","Human Resources","Salary Sacrifice Schemes","R4400"
"Wolverhampton City Council","http://opendatacommunities.org/id/metropolitan-district-council/wolverhampton","714279","Tusker","SIN327337","177.57","Services - Professional Fees","130196995","15/12/2017","Human Resources","Salary Sacrifice Schemes","R4400"
"Wolverhampton City Council","http://opendatacommunities.org/id/metropolitan-district-council/wolverhampton","714279","Tusker","SIN327337","58.05","Services - Professional Fees","130196995","15/12/2017","Human Resources","Salary Sacrifice Schemes","R4400"
"Wolverhampton City Council","http://opendatacommunities.org/id/metropolitan-district-council/wolverhampton","714279","Tusker","SIN327337","75.61","Services - Professional Fees","130196995","15/12/2017","Human Resources","Salary Sacrifice Schemes","R4400"
"Wolverhampton City Council","http://opendatacommunities.org/id/metropolitan-district-council/wolverhampton","714279","Tusker","SIN327337","213.08","Services - Professional Fees","130196995","15/12/2017","Human Resources","Salary Sacrifice Schemes","R4400"
"Wolverhampton City Council","http://opendatacommunities.org/id/metropolitan-district-council/wolverhampton","714279","Tusker","SIN331205","23,121.23","Services - Professional Fees","130198305","27/12/2017","Human Resources","Salary Sacrifice Schemes","R4400"
"Wolverhampton City Council","http://opendatacommunities.org/id/metropolitan-district-council/wolverhampton","714279","Tusker","SIN331205","-23,121.23","Services - Professional Fees","130198305","27/12/2017","Human Resources","Salary Sacrifice Schemes","R4400"
"Wolverhampton City Council","http://opendatacommunities.org/id/metropolitan-district-council/wolverhampton","714279","Tusker","SIN331205","7,773.95","Services - Professional Fees","130198305","27/12/2017","Human Resources","Salary Sacrifice Schemes","R4400"
"Wolverhampton City Council","http://opendatacommunities.org/id/metropolitan-district-council/wolverhampton","714279","Tusker","SIN331205","9,328.73","Services - Professional Fees","130198305","27/12/2017","Human Resources","Salary Sacrifice Schemes","R4400"
"Wolverhampton City Council","http://opendatacommunities.org/id/metropolitan-district-council/wolverhampton","714279","Tusker","SIN331205","3,654.28","Services - Professional Fees","130198305","27/12/2017","Human Resources","Salary Sacrifice Schemes","R4400"
"Wolverhampton City Council","http://opendatacommunities.org/id/metropolitan-district-council/wolverhampton","714279","Tusker","SIN331205","3,919.06","Services - Professional Fees","130198305","27/12/2017","Human Resources","Salary Sacrifice Schemes","R4400"
"Wolverhampton City Council","http://opendatacommunities.org/id/metropolitan-district-council/wolverhampton","714313","Midcounties - Finchfield Nursery","NEF Autumn 2017 INST 2","31,676.50","TPP - Private Nursery Education Funding","190403399","15/12/2017","Early Years","Early Years Universal Entitlement for 3 and 4 Year Olds","R5035"
"Wolverhampton City Council","http://opendatacommunities.org/id/metropolitan-district-council/wolverhampton","714313","Midcounties - Finchfield Nursery","TFT Autumn 2017 Inst 2","7,289.89","Grant Payments","190404263","20/12/2017","Early Years","Early Years Entitlement Funding for Disadvantaged 2 Year Olds","R4700"
"Wolverhampton City Council","http://opendatacommunities.org/id/metropolitan-district-council/wolverhampton","714313","Midcounties - Finchfield Nursery","EYPP Autumn 2017","111.30","TPP - Private Nursery Education Funding","190404359","20/12/2017","Early Years","Early Years Pupil Premium","R5035"
"Wolverhampton City Council","http://opendatacommunities.org/id/metropolitan-district-council/wolverhampton","714314","Midcounties - Wellington Rd Nursery","P16029820171208","205.00","Client Allowances","190401725","13/12/2017","Looked After Children","Looked After Team 2","R6301"
"Wolverhampton City Council","http://opendatacommunities.org/id/metropolitan-district-council/wolverhampton","714316","Little Oaks Day Nursery","TFT Autumn 2017 Inst 2","14,404.24","Grant Payments","190404263","20/12/2017","Early Years","Early Years Entitlement Funding for Disadvantaged 2 Year Olds","R4700"
"Wolverhampton City Council","http://opendatacommunities.org/id/metropolitan-district-council/wolverhampton","714316","Little Oaks Day Nursery","R Hughes Enhanced Funding Sum 17","1,000.00","Grant Payments","190403417","15/12/2017","Early Years","Early Years SEN Inclusion Fund","R4700"
"Wolverhampton City Council","http://opendatacommunities.org/id/metropolitan-district-council/wolverhampton","714316","Little Oaks Day Nursery","EYPP Autumn 2017","779.10","TPP - Private Nursery Education Funding","190404359","20/12/2017","Early Years","Early Years Pupil Premium","R5035"
"Wolverhampton City Council","http://opendatacommunities.org/id/metropolitan-district-council/wolverhampton","715688","Sterling Filtration Limited","124295","119.56","Equipment - Purchase","190400750","08/12/2017","Fleet Services","Fleet Management","R4000"
"Wolverhampton City Council","http://opendatacommunities.org/id/metropolitan-district-council/wolverhampton","715714","Prime Resolution Limited","SI - 120","770.00","Services - Professional Fees","130198443","08/12/2017","Standards and Vulnerable Pupils","SEN Special Education Admin","R4400"
"Wolverhampton City Council","http://opendatacommunities.org/id/metropolitan-district-council/wolverhampton","715714","Prime Resolution Limited","SI - 129","300.00","Services - Professional Fees","130199126","15/12/2017","Standards and Vulnerable Pupils","SEN Special Education Admin","R4400"
"Wolverhampton City Council","http://opendatacommunities.org/id/metropolitan-district-council/wolverhampton","715714","Prime Resolution Limited","SI - 130","924.00","Services - Professional Fees","130199127","15/12/2017","Standards and Vulnerable Pupils","SEN Special Education Admin","R4400"
"Wolverhampton City Council","http://opendatacommunities.org/id/metropolitan-district-council/wolverhampton","715715","Just One Recruitment and Training Ltd","P15998620171201","42,399.50","Client Allowances","190399482","06/12/2017","Child Protection","CIN - Bingley CC - Area 4","R6301"
"Wolverhampton City Council","http://opendatacommunities.org/id/metropolitan-district-council/wolverhampton","715715","Just One Recruitment and Training Ltd","P16107920171219","4,151.00","Client Allowances","190404710","20/12/2017","Child Protection","CIN - Bingley CC - Area 4","R6301"
"Wolverhampton City Council","http://opendatacommunities.org/id/metropolitan-district-council/wolverhampton","715715","Just One Recruitment and Training Ltd","P16029720171208","2,075.50","Client Allowances","190401724","13/12/2017","Child Protection","CIN - Bingley CC - Area 4","R6301"
"Wolverhampton City Council","http://opendatacommunities.org/id/metropolitan-district-council/wolverhampton","715778","Coopal Ltd","721","295.00","Equipment - R & M","130197889","20/12/2017","Leisure Services","Aldersley Leisure Village","R4003"
"Wolverhampton City Council","http://opendatacommunities.org/id/metropolitan-district-council/wolverhampton","715778","Coopal Ltd","720","850.00","Equipment - R & M","130197888","20/12/2017","Leisure Services","Aldersley Leisure Village","R4003"
"Wolverhampton City Council","http://opendatacommunities.org/id/metropolitan-district-council/wolverhampton","715785","N A Brown Limited","27429","1,826.00","Equipment - Purchase","130195417","06/12/2017","Environmental Maintenance","Ground Maintenance West","R4000"
"Wolverhampton City Council","http://opendatacommunities.org/id/metropolitan-district-council/wolverhampton","715821","EDF Energy","000003611458","333.65","Electricity","190405447","21/12/2017","City Development","Southside","R2100"
"Wolverhampton City Council","http://opendatacommunities.org/id/metropolitan-district-council/wolverhampton","715951","Kate Tilley","KT - W - 11a - 17 ( W - Q - 48 )","75.00","Services - Professional Fees","130197710","13/12/2017","Visitor Economy","Art Galleries - Schools Art SLA Service","R4400"
"Wolverhampton City Council","http://opendatacommunities.org/id/metropolitan-district-council/wolverhampton","715951","Kate Tilley","KT - W - 11 - 17 ( W - Q - 47 )","327.00","Services - Professional Fees","130197709","13/12/2017","Visitor Economy","Art Galleries - Schools Art SLA Service","R4400"
"Wolverhampton City Council","http://opendatacommunities.org/id/metropolitan-district-council/wolverhampton","716001","Sigma Surveying Services Limited","00001241/MAS","11,600.00","Services - Consultants","130198307","27/12/2017","Commercial Services","Corporate Procurement Unit","R4404"
"Wolverhampton City Council","http://opendatacommunities.org/id/metropolitan-district-council/wolverhampton","716001","Sigma Surveying Services Limited","00001238/MAS","6,000.00","Services - Professional Fees","130198306","27/12/2017","Commercial Services","Corporate Procurement Unit","R4400"
"Wolverhampton City Council","http://opendatacommunities.org/id/metropolitan-district-council/wolverhampton","716010","Kingdom Security Limited","0000480856","27,180.00","Services - Professional Fees","130200338","27/12/2017","Public Protection","Environmental Crime","R4400"
"Wolverhampton City Council","http://opendatacommunities.org/id/metropolitan-district-council/wolverhampton","716061","Victoria Bithell","0116/2017 - 18","1,560.00","Services - Professional Fees","130195794","08/12/2017","Visitor Economy","Pop Gallery Space","R4400"
"Wolverhampton City Council","http://opendatacommunities.org/id/metropolitan-district-council/wolverhampton","716065","Accora Limited","049479","959.00","Equipment - Purchase","130196455","13/12/2017","Independent Living Service","Independent Living Service","R4000"
"Wolverhampton City Council","http://opendatacommunities.org/id/metropolitan-district-council/wolverhampton","716065","Accora Limited","049479","189.00","Equipment - Purchase","130196455","13/12/2017","Independent Living Service","Independent Living Service","R4000"
"Wolverhampton City Council","http://opendatacommunities.org/id/metropolitan-district-council/wolverhampton","716065","Accora Limited","049479","150.00","Equipment - Purchase","130196455","13/12/2017","Independent Living Service","Independent Living Service","R4000"
"Wolverhampton City Council","http://opendatacommunities.org/id/metropolitan-district-council/wolverhampton","716065","Accora Limited","CN041332","-625.00","Equipment - R & M","130160880","13/12/2017","Independent Living Service","Independent Living Service","R4003"
"Wolverhampton City Council","http://opendatacommunities.org/id/metropolitan-district-council/wolverhampton","716106","Active Assistance","12773620171204","1,232.91","TPP - Home Care","190399660","06/12/2017","Physical Disabilities Care Purchasing","PD Care Purchasing (Spot Placements)","R5420"
"Wolverhampton City Council","http://opendatacommunities.org/id/metropolitan-district-council/wolverhampton","716106","Active Assistance","12773620171204","136.99","TPP - Home Care","190399660","06/12/2017","Physical Disabilities Care Purchasing","PD Care Purchasing (Spot Placements)","R5420"
"Wolverhampton City Council","http://opendatacommunities.org/id/metropolitan-district-council/wolverhampton","716106","Active Assistance","12789620171212","1,232.91","TPP - Home Care","190402101","13/12/2017","Physical Disabilities Care Purchasing","PD Care Purchasing (Spot Placements)","R5420"
"Wolverhampton City Council","http://opendatacommunities.org/id/metropolitan-district-council/wolverhampton","716106","Active Assistance","12789620171212","136.99","TPP - Home Care","190402101","13/12/2017","Physical Disabilities Care Purchasing","PD Care Purchasing (Spot Placements)","R5420"
"Wolverhampton City Council","http://opendatacommunities.org/id/metropolitan-district-council/wolverhampton","716118","The Ashmore Play Hub Ltd","EYPP Autumn 2017","333.90","TPP - Private Nursery Education Funding","190404359","20/12/2017","Early Years","Early Years Pupil Premium","R5035"
"Wolverhampton City Council","http://opendatacommunities.org/id/metropolitan-district-council/wolverhampton","716118","The Ashmore Play Hub Ltd","NEF Autumn 2017 INST 2","3,543.42","TPP - Private Nursery Education Funding","190403399","15/12/2017","Early Years","Early Years Universal Entitlement for 3 and 4 Year Olds","R5035"
"Wolverhampton City Council","http://opendatacommunities.org/id/metropolitan-district-council/wolverhampton","716118","The Ashmore Play Hub Ltd","TFT Autumn 2017 Inst 2","9,018.04","Grant Payments","190404263","20/12/2017","Early Years","Early Years Entitlement Funding for Disadvantaged 2 Year Olds","R4700"
"Wolverhampton City Council","http://opendatacommunities.org/id/metropolitan-district-council/wolverhampton","716120","Care For the Family","12296","540.00","Books","130198308","08/12/2017","Early Intervention","EIP Locality 7 � Low Hill","R4309"
"Wolverhampton City Council","http://opendatacommunities.org/id/metropolitan-district-council/wolverhampton","716121","Blue Cable Ltd","BC/976/14","260.00","Computing - Purchase of Hardware","130196845","20/12/2017","ICTS","Document Centre - General","R4530"
"Wolverhampton City Council","http://opendatacommunities.org/id/metropolitan-district-council/wolverhampton","716121","Blue Cable Ltd","BC/974/14","660.00","Computing - Purchase of Hardware","130196646","15/12/2017","ICTS","Strategic ICTS (ICT Service Budget)","R4530"
"Wolverhampton City Council","http://opendatacommunities.org/id/metropolitan-district-council/wolverhampton","716125","Autostart Midlands Limited","080277","290.00","Equipment - Purchase","190406211","28/12/2017","Fleet Services","Fleet Management","R4000"
"Wolverhampton City Council","http://opendatacommunities.org/id/metropolitan-district-council/wolverhampton","716151","Dr. Laurie Durand","WCCH011117","1,792.20","Services - Professional Fees","130198444","13/12/2017","Legal Services","Centralised External Legal Costs","R4400"
"Wolverhampton City Council","http://opendatacommunities.org/id/metropolitan-district-council/wolverhampton","716177","Bolinda Uk Ltd","25422","506.27","Books","130197897","27/12/2017","Strategic Organisation Development","Global Budgets","R4309"
"Wolverhampton City Council","http://opendatacommunities.org/id/metropolitan-district-council/wolverhampton","716177","Bolinda Uk Ltd","25420","79.96","Books","130197895","27/12/2017","Strategic Organisation Development","Global Budgets","R4309"
"Wolverhampton City Council","http://opendatacommunities.org/id/metropolitan-district-council/wolverhampton","716177","Bolinda Uk Ltd","25417","516.67","Books","130197892","27/12/2017","Strategic Organisation Development","Global Budgets","R4309"
"Wolverhampton City Council","http://opendatacommunities.org/id/metropolitan-district-council/wolverhampton","716177","Bolinda Uk Ltd","25421","119.95","Books","130197896","27/12/2017","Strategic Organisation Development","Global Budgets","R4309"
"Wolverhampton City Council","http://opendatacommunities.org/id/metropolitan-district-council/wolverhampton","716177","Bolinda Uk Ltd","25419","45.57","Books","130197894","27/12/2017","Strategic Organisation Development","Global Budgets","R4309"
"Wolverhampton City Council","http://opendatacommunities.org/id/metropolitan-district-council/wolverhampton","716177","Bolinda Uk Ltd","25416","521.47","Books","130197891","27/12/2017","Strategic Organisation Development","Global Budgets","R4309"
"Wolverhampton City Council","http://opendatacommunities.org/id/metropolitan-district-council/wolverhampton","716177","Bolinda Uk Ltd","25418","65.56","Books","130197893","27/12/2017","Strategic Organisation Development","Global Budgets","R4309"
"Wolverhampton City Council","http://opendatacommunities.org/id/metropolitan-district-council/wolverhampton","716177","Bolinda Uk Ltd","25415","532.67","Books","130197890","27/12/2017","Strategic Organisation Development","Global Budgets","R4309"
"Wolverhampton City Council","http://opendatacommunities.org/id/metropolitan-district-council/wolverhampton","716209","Merchandise Ltd","87613","270.00","Marketing \ Non-staff advertising","130196846","20/12/2017","School Planning & Resources","Learning Technologies","R4317"
"Wolverhampton City Council","http://opendatacommunities.org/id/metropolitan-district-council/wolverhampton","716209","Merchandise Ltd","87181","390.00","Marketing \ Non-staff advertising","130196456","15/12/2017","School Planning & Resources","Technical Support","R4317"
"Wolverhampton City Council","http://opendatacommunities.org/id/metropolitan-district-council/wolverhampton","716209","Merchandise Ltd","87615","511.00","Marketing \ Non-staff advertising","130197711","13/12/2017","School Planning & Resources","Learning Technologies","R4317"
"Wolverhampton City Council","http://opendatacommunities.org/id/metropolitan-district-council/wolverhampton","716209","Merchandise Ltd","87225","510.00","Marketing \ Non-staff advertising","130195795","08/12/2017","School Planning & Resources","Technical Support","R4317"
"Wolverhampton City Council","http://opendatacommunities.org/id/metropolitan-district-council/wolverhampton","716224","Homers Travel","282","2,387.44","Client Transport","130198663","13/12/2017","School Planning & Resources","Special - Transport","R3042"
"Wolverhampton City Council","http://opendatacommunities.org/id/metropolitan-district-council/wolverhampton","716224","Homers Travel","297","1,080.00","Client Transport","130200582","28/12/2017","School Planning & Resources","Special - Transport","R3042"
"Wolverhampton City Council","http://opendatacommunities.org/id/metropolitan-district-council/wolverhampton","716224","Homers Travel","283","1,980.00","Client Transport","130198664","08/12/2017","School Planning & Resources","Special - Transport","R3042"
"Wolverhampton City Council","http://opendatacommunities.org/id/metropolitan-district-council/wolverhampton","716224","Homers Travel","298","1,302.24","Client Transport","130200583","28/12/2017","School Planning & Resources","Special - Transport","R3042"
"Wolverhampton City Council","http://opendatacommunities.org/id/metropolitan-district-council/wolverhampton","716227","Ascentis Awarding Body","50027","100.00","Exam Expenses (Non-Employee)","130198445","13/12/2017","Adult Education","Discretionary Fund","R4630"
"Wolverhampton City Council","http://opendatacommunities.org/id/metropolitan-district-council/wolverhampton","716227","Ascentis Awarding Body","51631","15.00","Exam Expenses (Non-Employee)","130198448","08/12/2017","Adult Education","Discretionary Fund","R4630"
"Wolverhampton City Council","http://opendatacommunities.org/id/metropolitan-district-council/wolverhampton","716227","Ascentis Awarding Body","50028","100.00","Exam Expenses (Non-Employee)","130198446","13/12/2017","Adult Education","Discretionary Fund","R4630"
"Wolverhampton City Council","http://opendatacommunities.org/id/metropolitan-district-council/wolverhampton","716227","Ascentis Awarding Body","51182","7.83","Exam Expenses (Non-Employee)","130198447","08/12/2017","Adult Education","Foundation Studies Delivery Area","R4630"
"Wolverhampton City Council","http://opendatacommunities.org/id/metropolitan-district-council/wolverhampton","716227","Ascentis Awarding Body","51182","2.17","Exam Expenses (Non-Employee)","130198447","08/12/2017","Adult Education","Discretionary Fund","R4630"
"Wolverhampton City Council","http://opendatacommunities.org/id/metropolitan-district-council/wolverhampton","716227","Ascentis Awarding Body","52713","312.00","Exam Expenses (Non-Employee)","130198449","08/12/2017","Adult Education","Discretionary Fund","R4630"
"Wolverhampton City Council","http://opendatacommunities.org/id/metropolitan-district-council/wolverhampton","716246","One 4 You Services Ltd","6630","2,941.84","Client Transport","130198667","20/12/2017","School Planning & Resources","Special - Transport","R3042"
"Wolverhampton City Council","http://opendatacommunities.org/id/metropolitan-district-council/wolverhampton","716246","One 4 You Services Ltd","6628","1,364.00","Client Transport","130198665","20/12/2017","School Planning & Resources","Special - Transport","R3042"
"Wolverhampton City Council","http://opendatacommunities.org/id/metropolitan-district-council/wolverhampton","716246","One 4 You Services Ltd","6629","1,470.00","Client Transport","130198666","20/12/2017","School Planning & Resources","Special - Transport","R3042"
"Wolverhampton City Council","http://opendatacommunities.org/id/metropolitan-district-council/wolverhampton","716319","Patrick J J Rollinson","pjr/50","210.00","R&M - Departmental planned (internal)","130196321","13/12/2017","Maintenance Programme","Centralised R&M","R2000"
"Wolverhampton City Council","http://opendatacommunities.org/id/metropolitan-district-council/wolverhampton","716343","The Financial Reporting Council","30021082","2,025.00","Services - Professional Fees","130198668","20/12/2017","Central Corporate Budgets","Corporate Management","R4400"
"Wolverhampton City Council","http://opendatacommunities.org/id/metropolitan-district-council/wolverhampton","716354","Mangar International Ltd","0000180782","710.00","Equipment - Purchase","130198309","27/12/2017","Independent Living Service","Independent Living Service","R4000"
"Wolverhampton City Council","http://opendatacommunities.org/id/metropolitan-district-council/wolverhampton","716354","Mangar International Ltd","0000180782","10.21","Equipment - Purchase","130198309","27/12/2017","Independent Living Service","Independent Living Service","R4000"
"Wolverhampton City Council","http://opendatacommunities.org/id/metropolitan-district-council/wolverhampton","716369","Armstrong Bell Ltd","0024220","207.68","Comms - Telephone Call charges","130196996","13/12/2017","Skills","Connexions Contract","R4505"
"Wolverhampton City Council","http://opendatacommunities.org/id/metropolitan-district-council/wolverhampton","716379","CN Unwin Limited","0000065105","55.45","Equipment - Purchase","190403310","15/12/2017","Fleet Services","Fleet Management","R4000"
"Wolverhampton City Council","http://opendatacommunities.org/id/metropolitan-district-council/wolverhampton","716547","Teeny Tots Playgroup Ltd","NEF Autumn 2017 INST 2","357.00","TPP - Private Nursery Education Funding","190403399","15/12/2017","Early Years","Early Years Universal Entitlement for 3 and 4 Year Olds","R5035"
"Wolverhampton City Council","http://opendatacommunities.org/id/metropolitan-district-council/wolverhampton","716547","Teeny Tots Playgroup Ltd","TFT Autumn 2017 Inst 2","5,659.20","Grant Payments","190404263","20/12/2017","Early Years","Early Years Entitlement Funding for Disadvantaged 2 Year Olds","R4700"
"Wolverhampton City Council","http://opendatacommunities.org/id/metropolitan-district-council/wolverhampton","716571","E-Recruiter","965","3,225.00","Agency Staff","130196171","13/12/2017","Strategic Finance","Agresso System Support","R1100"
"Wolverhampton City Council","http://opendatacommunities.org/id/metropolitan-district-council/wolverhampton","716571","E-Recruiter","951","3,225.00","Agency Staff","130195277","06/12/2017","Strategic Finance","Agresso System Support","R1100"
"Wolverhampton City Council","http://opendatacommunities.org/id/metropolitan-district-council/wolverhampton","716571","E-Recruiter","982","2,902.50","Agency Staff","130196847","20/12/2017","Strategic Finance","Agresso System Support","R1100"
"Wolverhampton City Council","http://opendatacommunities.org/id/metropolitan-district-council/wolverhampton","716571","E-Recruiter","998","3,225.00","Agency Staff","130197712","27/12/2017","Strategic Finance","Agresso System Support","R1100"
"Wolverhampton City Council","http://opendatacommunities.org/id/metropolitan-district-council/wolverhampton","716573","Young Voices (UK) Ltd","INV37692","120.00","Education trips, Holidays, Outings & Activities","130198129","06/12/2017","Schools","St Michael�s Church of England Primary School","R4970"
"Wolverhampton City Council","http://opendatacommunities.org/id/metropolitan-district-council/wolverhampton","716573","Young Voices (UK) Ltd","INV37692","253.76","Education trips, Holidays, Outings & Activities","130198129","06/12/2017","Schools","St Michael�s Church of England Primary School","R4970"
"Wolverhampton City Council","http://opendatacommunities.org/id/metropolitan-district-council/wolverhampton","716575","Karen Broomhall","NEF Autumn 2017 INST 2","357.00","TPP - Private Nursery Education Funding","190403399","15/12/2017","Early Years","Early Years Universal Entitlement for 3 and 4 Year Olds","R5035"
"Wolverhampton City Council","http://opendatacommunities.org/id/metropolitan-district-council/wolverhampton","716588","Magna large Print Books","I103003","302.20","Books","130195986","13/12/2017","Strategic Organisation Development","Global Budgets","R4309"
"Wolverhampton City Council","http://opendatacommunities.org/id/metropolitan-district-council/wolverhampton","716589","Elston Hall Multi-Academy Trust","EYPP Autumn 2017","333.90","TPP - Private Nursery Education Funding","190404359","20/12/2017","Early Years","Early Years Pupil Premium","R5035"
"Wolverhampton City Council","http://opendatacommunities.org/id/metropolitan-district-council/wolverhampton","716594","Burke Bros Recovery","G26382","70.00","Services - Professional Fees","190404698","20/12/2017","Fleet Services","Fleet Management","R4400"
"Wolverhampton City Council","http://opendatacommunities.org/id/metropolitan-district-council/wolverhampton","716594","Burke Bros Recovery","G26115","70.00","Services - Professional Fees","190403355","15/12/2017","Fleet Services","Fleet Management","R4400"
"Wolverhampton City Council","http://opendatacommunities.org/id/metropolitan-district-council/wolverhampton","716594","Burke Bros Recovery","G26683","70.00","Services - Professional Fees","190406246","28/12/2017","Fleet Services","Fleet Management","R4400"
"Wolverhampton City Council","http://opendatacommunities.org/id/metropolitan-district-council/wolverhampton","716594","Burke Bros Recovery","G25820","70.00","Services - Professional Fees","190399069","01/12/2017","Fleet Services","Fleet Management","R4400"
"Wolverhampton City Council","http://opendatacommunities.org/id/metropolitan-district-council/wolverhampton","716594","Burke Bros Recovery","G26357","70.00","Services - Professional Fees","190404697","20/12/2017","Fleet Services","Fleet Management","R4400"
"Wolverhampton City Council","http://opendatacommunities.org/id/metropolitan-district-council/wolverhampton","716594","Burke Bros Recovery","G26356","70.00","Services - Professional Fees","190404696","20/12/2017","Fleet Services","Fleet Management","R4400"
"Wolverhampton City Council","http://opendatacommunities.org/id/metropolitan-district-council/wolverhampton","716594","Burke Bros Recovery","G26085","70.00","Services - Professional Fees","190400779","08/12/2017","Fleet Services","Fleet Management","R4400"
"Wolverhampton City Council","http://opendatacommunities.org/id/metropolitan-district-council/wolverhampton","716594","Burke Bros Recovery","G26188","70.00","Services - Professional Fees","190403356","15/12/2017","Fleet Services","Fleet Management","R4400"
"Wolverhampton City Council","http://opendatacommunities.org/id/metropolitan-district-council/wolverhampton","716594","Burke Bros Recovery","G25765","70.00","Services - Professional Fees","190399068","01/12/2017","Fleet Services","Fleet Management","R4400"
"Wolverhampton City Council","http://opendatacommunities.org/id/metropolitan-district-council/wolverhampton","716620","Melsecure International","54351","1,125.00","Equipment - R & M","130196174","08/12/2017","Community Safety","SWP - Locations","R4003"
"Wolverhampton City Council","http://opendatacommunities.org/id/metropolitan-district-council/wolverhampton","716629","ATP Instrumentation Ltd","Inv227553","100.00","Equipment - R & M","130196848","20/12/2017","Public Protection","EHTS Operational Costs","R4003"
"Wolverhampton City Council","http://opendatacommunities.org/id/metropolitan-district-council/wolverhampton","716659","CILEx","CILEX2018.089","2,768.00","Subscriptions","130196647","20/12/2017","Legal Services","Legal Services","R4701"
"Wolverhampton City Council","http://opendatacommunities.org/id/metropolitan-district-council/wolverhampton","716663","Terry Brayshaw","021","235.00","Services - Professional Fees","130197326","01/12/2017","Standards and Vulnerable Pupils","Music Support Team","R4400"
"Wolverhampton City Council","http://opendatacommunities.org/id/metropolitan-district-council/wolverhampton","716681","Julia Foster","WAGN0V17","300.00","Services - Professional Fees","130198453","27/12/2017","Visitor Economy","Education And Access","R4400"
"Wolverhampton City Council","http://opendatacommunities.org/id/metropolitan-district-council/wolverhampton","716681","Julia Foster","WAG0CT17","300.00","Services - Professional Fees","130198452","08/12/2017","Visitor Economy","Education And Access","R4400"
"Wolverhampton City Council","http://opendatacommunities.org/id/metropolitan-district-council/wolverhampton","716697","Npower Leeds","D09W642345","152.26","Electricity","190405443","21/12/2017","Corporate Asset Management","Central Utilities to Recharge","R2100"
"Wolverhampton City Council","http://opendatacommunities.org/id/metropolitan-district-council/wolverhampton","716706","Cromwell Tools Limited","7196051","14.39","Equipment - Purchase","190400772","08/12/2017","Fleet Services","Fleet Management","R4000"
"Wolverhampton City Council","http://opendatacommunities.org/id/metropolitan-district-council/wolverhampton","716717","Pre-Paid Financial Services Ltd","08470-Wolverhampton-1117","4,013.42","Services - Supplies and Services to service users","130198310","27/12/2017","Welfare Rights & Financial Assessment","Direct Payments Client Admin","R4408"
"Wolverhampton City Council","http://opendatacommunities.org/id/metropolitan-district-council/wolverhampton","716747","1Redcube Ltd","R55648/0","189.54","Comms - Telephone Rental","130197910","08/12/2017","Visitor Economy","Box Office Administration","R4504"
"Wolverhampton City Council","http://opendatacommunities.org/id/metropolitan-district-council/wolverhampton","716747","1Redcube Ltd","R54932/0","189.54","Comms - Telephone Rental","130197902","20/12/2017","Visitor Economy","Box Office Administration","R4504"
"Wolverhampton City Council","http://opendatacommunities.org/id/metropolitan-district-council/wolverhampton","716747","1Redcube Ltd","R55045/0","187.50","Comms - Telephone Rental","130197903","20/12/2017","Visitor Economy","The Little Civic","R4504"
"Wolverhampton City Council","http://opendatacommunities.org/id/metropolitan-district-council/wolverhampton","716747","1Redcube Ltd","R55045/0","412.50","Comms - Telephone Rental","130197903","20/12/2017","Visitor Economy","Box Office Administration","R4504"
"Wolverhampton City Council","http://opendatacommunities.org/id/metropolitan-district-council/wolverhampton","716747","1Redcube Ltd","R55283/0","189.54","Comms - Telephone Rental","130197906","20/12/2017","Visitor Economy","Box Office Administration","R4504"
"Wolverhampton City Council","http://opendatacommunities.org/id/metropolitan-district-council/wolverhampton","716747","1Redcube Ltd","R54819/1","189.54","Comms - Telephone Rental","130197901","20/12/2017","Visitor Economy","Box Office Administration","R4504"
"Wolverhampton City Council","http://opendatacommunities.org/id/metropolitan-district-council/wolverhampton","716747","1Redcube Ltd","R55527/0","189.54","Comms - Telephone Rental","130197909","08/12/2017","Visitor Economy","Box Office Administration","R4504"
"Wolverhampton City Council","http://opendatacommunities.org/id/metropolitan-district-council/wolverhampton","716747","1Redcube Ltd","R55404/0","412.50","Comms - Telephone Rental","130197907","08/12/2017","Visitor Economy","Box Office Administration","R4504"
"Wolverhampton City Council","http://opendatacommunities.org/id/metropolitan-district-council/wolverhampton","716747","1Redcube Ltd","R55404/0","187.62","Comms - Telephone Rental","130197907","08/12/2017","Visitor Economy","The Little Civic","R4504"
"Wolverhampton City Council","http://opendatacommunities.org/id/metropolitan-district-council/wolverhampton","716747","1Redcube Ltd","R54707/1","188.37","Comms - Telephone Rental","130197899","20/12/2017","Visitor Economy","The Little Civic","R4504"
"Wolverhampton City Council","http://opendatacommunities.org/id/metropolitan-district-council/wolverhampton","716747","1Redcube Ltd","R54707/1","412.50","Comms - Telephone Rental","130197899","20/12/2017","Visitor Economy","Box Office Administration","R4504"
"Wolverhampton City Council","http://opendatacommunities.org/id/metropolitan-district-council/wolverhampton","716747","1Redcube Ltd","R55046/0","189.54","Comms - Telephone Rental","130197904","20/12/2017","Visitor Economy","Box Office Administration","R4504"
"Wolverhampton City Council","http://opendatacommunities.org/id/metropolitan-district-council/wolverhampton","716747","1Redcube Ltd","R55771/0","189.54","Comms - Telephone Rental","130197911","08/12/2017","Visitor Economy","Box Office Administration","R4504"
"Wolverhampton City Council","http://opendatacommunities.org/id/metropolitan-district-council/wolverhampton","716747","1Redcube Ltd","R54599/1","379.08","Comms - Telephone Call charges","130197898","06/12/2017","Visitor Economy","Box Office Administration","R4505"
"Wolverhampton City Council","http://opendatacommunities.org/id/metropolitan-district-council/wolverhampton","716747","1Redcube Ltd","R54708/1","189.54","Comms - Telephone Call charges","130197900","20/12/2017","Visitor Economy","Box Office Administration","R4505"
"Wolverhampton City Council","http://opendatacommunities.org/id/metropolitan-district-council/wolverhampton","716747","1Redcube Ltd","R55164/1","189.54","Comms - Telephone Rental","130197905","20/12/2017","Visitor Economy","Box Office Administration","R4504"
"Wolverhampton City Council","http://opendatacommunities.org/id/metropolitan-district-council/wolverhampton","716747","1Redcube Ltd","R55895/1","189.54","Comms - Telephone Rental","130197912","08/12/2017","Visitor Economy","Box Office Administration","R4504"
"Wolverhampton City Council","http://opendatacommunities.org/id/metropolitan-district-council/wolverhampton","716747","1Redcube Ltd","R55405/0","189.54","Comms - Telephone Rental","130197908","08/12/2017","Visitor Economy","Box Office Administration","R4504"
"Wolverhampton City Council","http://opendatacommunities.org/id/metropolitan-district-council/wolverhampton","716767","KINGSTON - Northern House Academy","Northern House Pru 50% Autumn Term Final","47,270.00","Grant Payments","190403039","15/12/2017","Schools","Special Schools Top Up Contingency","R4700"
"Wolverhampton City Council","http://opendatacommunities.org/id/metropolitan-district-council/wolverhampton","716767","KINGSTON - Northern House Academy","Northern House Pru 50% Spring Term Interim","40,517.00","Grant Payments","190403040","15/12/2017","Schools","Special Schools Top Up Contingency","R4700"
"Wolverhampton City Council","http://opendatacommunities.org/id/metropolitan-district-council/wolverhampton","716776","NHS Supply Chain","1018156898","925.00","TPP - Public Health Contracts","130196323","06/12/2017","Contracts","Healthy Start to Life","R5060"
"Wolverhampton City Council","http://opendatacommunities.org/id/metropolitan-district-council/wolverhampton","716806","Peak Activity Services Ltd","2551","15,960.00","TPP - Alternative Provision of Education","130200351","27/12/2017","Standards and Vulnerable Pupils","SEN Education OOC","R5037"
"Wolverhampton City Council","http://opendatacommunities.org/id/metropolitan-district-council/wolverhampton","716806","Peak Activity Services Ltd","2705","10,030.00","TPP - Alternative Provision of Education","130200352","27/12/2017","Standards and Vulnerable Pupils","SEN Education OOC","R5037"
"Wolverhampton City Council","http://opendatacommunities.org/id/metropolitan-district-council/wolverhampton","716806","Peak Activity Services Ltd","2549","19,380.00","TPP - Alternative Provision of Education","130200350","27/12/2017","Standards and Vulnerable Pupils","SEN Education OOC","R5037"
"Wolverhampton City Council","http://opendatacommunities.org/id/metropolitan-district-council/wolverhampton","716904","Lawyers in Local Government","2024","590.00","Conference Expenses","130195987","01/12/2017","Legal Services","Legal Services","R4611"
"Wolverhampton City Council","http://opendatacommunities.org/id/metropolitan-district-council/wolverhampton","716911","24 - Seven Cooling","272215","169.58","R&M - Departmental planned (external)","130198111","27/12/2017","Bereavement Services","Coroners","R2001"
"Wolverhampton City Council","http://opendatacommunities.org/id/metropolitan-district-council/wolverhampton","716914","Omari Project (ACCI)","5277/0820171207","325.00","TPP - Home Care","190400575","08/12/2017","Mental Health Assesment & Care Management","MH Care Purchasing (Spot Placements)","R5420"
"Wolverhampton City Council","http://opendatacommunities.org/id/metropolitan-district-council/wolverhampton","716914","Omari Project (ACCI)","5277/0820171207","325.00","TPP - Home Care","190400575","08/12/2017","Mental Health Assesment & Care Management","MH Care Purchasing (Spot Placements)","R5420"
"Wolverhampton City Council","http://opendatacommunities.org/id/metropolitan-district-council/wolverhampton","716914","Omari Project (ACCI)","5283/0820171207","455.00","TPP - Home Care","190400578","08/12/2017","Mental Health Assesment & Care Management","MH Care Purchasing (Spot Placements)","R5420"
"Wolverhampton City Council","http://opendatacommunities.org/id/metropolitan-district-council/wolverhampton","716914","Omari Project (ACCI)","5281/0820171207","520.00","TPP - Home Care","190400576","08/12/2017","Mental Health Assesment & Care Management","MH Care Purchasing (Spot Placements)","R5420"
"Wolverhampton City Council","http://opendatacommunities.org/id/metropolitan-district-council/wolverhampton","716914","Omari Project (ACCI)","5286/0820171207","292.50","TPP - Home Care","190400581","08/12/2017","Mental Health Assesment & Care Management","MH Care Purchasing (Spot Placements)","R5420"
"Wolverhampton City Council","http://opendatacommunities.org/id/metropolitan-district-council/wolverhampton","716914","Omari Project (ACCI)","5284/0820171207","260.00","TPP - Home Care","190400579","08/12/2017","Mental Health Assesment & Care Management","MH Care Purchasing (Spot Placements)","R5420"
"Wolverhampton City Council","http://opendatacommunities.org/id/metropolitan-district-council/wolverhampton","716914","Omari Project (ACCI)","5285/0820171207","390.00","TPP - Home Care","190400580","08/12/2017","Mental Health Assesment & Care Management","MH Care Purchasing (Spot Placements)","R5420"
"Wolverhampton City Council","http://opendatacommunities.org/id/metropolitan-district-council/wolverhampton","716914","Omari Project (ACCI)","ACCI/5287/24","2,083.33","TPP - Social Care Support Services","130198670","27/12/2017","Early Intervention","Transformation Challenge Award","R5501"
"Wolverhampton City Council","http://opendatacommunities.org/id/metropolitan-district-council/wolverhampton","716914","Omari Project (ACCI)","5725/0820171207","390.00","TPP - Home Care","190400582","08/12/2017","Mental Health Assesment & Care Management","MH Care Purchasing (Spot Placements)","R5420"
"Wolverhampton City Council","http://opendatacommunities.org/id/metropolitan-district-council/wolverhampton","716914","Omari Project (ACCI)","5282/0820171207","325.00","TPP - Home Care","190400577","08/12/2017","Mental Health Assesment & Care Management","MH Care Purchasing (Spot Placements)","R5420"
"Wolverhampton City Council","http://opendatacommunities.org/id/metropolitan-district-council/wolverhampton","716914","Omari Project (ACCI)","5282/0820171207","325.00","TPP - Home Care","190400577","08/12/2017","Mental Health Assesment & Care Management","MH Care Purchasing (Spot Placements)","R5420"
"Wolverhampton City Council","http://opendatacommunities.org/id/metropolitan-district-council/wolverhampton","716914","Omari Project (ACCI)","5282/0820171207","325.00","TPP - Home Care","190400577","08/12/2017","Mental Health Assesment & Care Management","MH Care Purchasing (Spot Placements)","R5420"
"Wolverhampton City Council","http://opendatacommunities.org/id/metropolitan-district-council/wolverhampton","716914","Omari Project (ACCI)","5282/0820171207","325.00","TPP - Home Care","190400577","08/12/2017","Mental Health Assesment & Care Management","MH Care Purchasing (Spot Placements)","R5420"
"Wolverhampton City Council","http://opendatacommunities.org/id/metropolitan-district-council/wolverhampton","716914","Omari Project (ACCI)","5282/0820171207","325.00","TPP - Home Care","190400577","08/12/2017","Mental Health Assesment & Care Management","MH Care Purchasing (Spot Placements)","R5420"
"Wolverhampton City Council","http://opendatacommunities.org/id/metropolitan-district-council/wolverhampton","716914","Omari Project (ACCI)","5282/0820171207","325.00","TPP - Home Care","190400577","08/12/2017","Mental Health Assesment & Care Management","MH Care Purchasing (Spot Placements)","R5420"
"Wolverhampton City Council","http://opendatacommunities.org/id/metropolitan-district-council/wolverhampton","717040","Wolv Vocational Training Ctr (Learning Partnership Trust)","WVTC Summer Term","13,078.00","Grant Payments","190403041","15/12/2017","Schools","Special Schools Top Up Contingency","R4700"
"Wolverhampton City Council","http://opendatacommunities.org/id/metropolitan-district-council/wolverhampton","717040","Wolv Vocational Training Ctr (Learning Partnership Trust)","WVTC Autumn Term adjustment","4,215.00","Grant Payments","190403044","15/12/2017","Schools","Special Schools Top Up Contingency","R4700"
"Wolverhampton City Council","http://opendatacommunities.org/id/metropolitan-district-council/wolverhampton","717040","Wolv Vocational Training Ctr (Learning Partnership Trust)","WVTC Autumn Term","15,257.00","Grant Payments","190403042","15/12/2017","Schools","Special Schools Top Up Contingency","R4700"
"Wolverhampton City Council","http://opendatacommunities.org/id/metropolitan-district-council/wolverhampton","717040","Wolv Vocational Training Ctr (Learning Partnership Trust)","WVTC 50% Spring Term Interim","6,539.00","Grant Payments","190403043","15/12/2017","Schools","Special Schools Top Up Contingency","R4700"
"Wolverhampton City Council","http://opendatacommunities.org/id/metropolitan-district-council/wolverhampton","717045","Exactrak","SLS/50350843","495.00","Equipment - R & M","130196999","20/12/2017","Highways Maintenance","Winter Maintenance","R4003"
"Wolverhampton City Council","http://opendatacommunities.org/id/metropolitan-district-council/wolverhampton","717072","Pick Everard","49711","90.00","External Professional Fees","130190737","15/12/2017","-","Primary Expansion Programme","C6002"
"Wolverhampton City Council","http://opendatacommunities.org/id/metropolitan-district-council/wolverhampton","717109","Westcroft School","Westcroft 50% Spring Term Interim","123,788.50","Grant Payments","190403032","15/12/2017","Schools","Special Schools Top Up Contingency","R4700"
"Wolverhampton City Council","http://opendatacommunities.org/id/metropolitan-district-council/wolverhampton","717109","Westcroft School","Westcroft Autumn Term Adjustments","768.00","Grant Payments","190403033","15/12/2017","Schools","Special Schools Top Up Contingency","R4700"
"Wolverhampton City Council","http://opendatacommunities.org/id/metropolitan-district-council/wolverhampton","717109","Westcroft School","Westcroft 50% Autumn Term Final","144,420.00","Grant Payments","190403031","15/12/2017","Schools","Special Schools Top Up Contingency","R4700"
"Wolverhampton City Council","http://opendatacommunities.org/id/metropolitan-district-council/wolverhampton","717125","New Chapters Fostercare","P160831 07011820171215","2,759.32","TPP - Placement Foster Care Agency","190403696","20/12/2017","Looked After Children","Out of City Placements","R5602"
"Wolverhampton City Council","http://opendatacommunities.org/id/metropolitan-district-council/wolverhampton","717125","New Chapters Fostercare","P160831 07011820171215","2,759.32","TPP - Placement Foster Care Agency","190403696","20/12/2017","Looked After Children","Out of City Placements","R5602"
"Wolverhampton City Council","http://opendatacommunities.org/id/metropolitan-district-council/wolverhampton","717164","Adoption Focus","FS AF 17 591","3,280.00","Direct Work With Children","130197913","27/12/2017","Looked After Children","Adoption Support Fund","R6310"
"Wolverhampton City Council","http://opendatacommunities.org/id/metropolitan-district-council/wolverhampton","717167","Foster Talk","14371","27.50","TPP - Social Care Support Services","130197002","06/12/2017","Looked After Children","Fostering Team & Allowances","R5501"
"Wolverhampton City Council","http://opendatacommunities.org/id/metropolitan-district-council/wolverhampton","717167","Foster Talk","14067","13.75","TPP - Social Care Support Services","130197001","06/12/2017","Looked After Children","Fostering Team & Allowances","R5501"
"Wolverhampton City Council","http://opendatacommunities.org/id/metropolitan-district-council/wolverhampton","717167","Foster Talk","14680","41.25","TPP - Social Care Support Services","130197003","01/12/2017","Looked After Children","Fostering Team & Allowances","R5501"
"Wolverhampton City Council","http://opendatacommunities.org/id/metropolitan-district-council/wolverhampton","717167","Foster Talk","15418","4.94","TPP - Social Care Support Services","130198837","20/12/2017","Looked After Children","Fostering Team & Allowances","R5501"
"Wolverhampton City Council","http://opendatacommunities.org/id/metropolitan-district-council/wolverhampton","717167","Foster Talk","13902","13.75","TPP - Social Care Support Services","130197000","06/12/2017","Looked After Children","Fostering Team & Allowances","R5501"
"Wolverhampton City Council","http://opendatacommunities.org/id/metropolitan-district-council/wolverhampton","717189","Bromford Housing Group Limited","P160591 07011820171218","4,537.96","TPP - Residential Care - Long Term","190404244","20/12/2017","Learning Disabilities Care Purchasing","LD Care Purchasing (Spot Placements)","R5400"
"Wolverhampton City Council","http://opendatacommunities.org/id/metropolitan-district-council/wolverhampton","717189","Bromford Housing Group Limited","P160591 07011820171218","5,192.00","TPP - Residential Care - Long Term","190404244","20/12/2017","Learning Disabilities Care Purchasing","LD Care Purchasing (Spot Placements)","R5400"
"Wolverhampton City Council","http://opendatacommunities.org/id/metropolitan-district-council/wolverhampton","717189","Bromford Housing Group Limited","P160591 07011820171218","4,537.96","TPP - Residential Care - Long Term","190404244","20/12/2017","Learning Disabilities Care Purchasing","LD Care Purchasing (Spot Placements)","R5400"
"Wolverhampton City Council","http://opendatacommunities.org/id/metropolitan-district-council/wolverhampton","717189","Bromford Housing Group Limited","P160591 07011820171218","4,536.00","TPP - Residential Care - Long Term","190404244","20/12/2017","Learning Disabilities Care Purchasing","LD Care Purchasing (Spot Placements)","R5400"
"Wolverhampton City Council","http://opendatacommunities.org/id/metropolitan-district-council/wolverhampton","717189","Bromford Housing Group Limited","P160591 07011820171218","4,537.96","TPP - Residential Care - Long Term","190404244","20/12/2017","Learning Disabilities Care Purchasing","LD Care Purchasing (Spot Placements)","R5400"
"Wolverhampton City Council","http://opendatacommunities.org/id/metropolitan-district-council/wolverhampton","717189","Bromford Housing Group Limited","P160591 07011820171218","4,537.96","TPP - Residential Care - Long Term","190404244","20/12/2017","Learning Disabilities Care Purchasing","LD Care Purchasing (Spot Placements)","R5400"
"Wolverhampton City Council","http://opendatacommunities.org/id/metropolitan-district-council/wolverhampton","717189","Bromford Housing Group Limited","P160591 07011820171218","4,537.96","TPP - Residential Care - Long Term","190404244","20/12/2017","Learning Disabilities Care Purchasing","LD Care Purchasing (Spot Placements)","R5400"
"Wolverhampton City Council","http://opendatacommunities.org/id/metropolitan-district-council/wolverhampton","717189","Bromford Housing Group Limited","P160591 07011820171218","4,537.96","TPP - Residential Care - Long Term","190404244","20/12/2017","Learning Disabilities Care Purchasing","LD Care Purchasing (Spot Placements)","R5400"
"Wolverhampton City Council","http://opendatacommunities.org/id/metropolitan-district-council/wolverhampton","717191","Movecorp Limited","100613","588.00","Storage","130197493","27/12/2017","Early Intervention","EIP Locality 5 � Whitmore Reans","R4910"
"Wolverhampton City Council","http://opendatacommunities.org/id/metropolitan-district-council/wolverhampton","717191","Movecorp Limited","100222","68.25","Storage","130194897","06/12/2017","Adult Education","Creative Studies Delivery Area","R4910"
"Wolverhampton City Council","http://opendatacommunities.org/id/metropolitan-district-council/wolverhampton","717191","Movecorp Limited","100622","540.00","Storage","130197494","27/12/2017","Housing Revenue Account","Duty Office","R4910"
"Wolverhampton City Council","http://opendatacommunities.org/id/metropolitan-district-council/wolverhampton","717191","Movecorp Limited","100229","50.00","Storage","130194898","06/12/2017","Independent Living Service","Independent Living Service","R4910"
"Wolverhampton City Council","http://opendatacommunities.org/id/metropolitan-district-council/wolverhampton","717191","Movecorp Limited","100569","340.00","Storage","130197004","20/12/2017","Housing Revenue Account","Duty Office","R4910"
"Wolverhampton City Council","http://opendatacommunities.org/id/metropolitan-district-council/wolverhampton","717191","Movecorp Limited","100624","169.00","Storage","130197495","27/12/2017","Housing Revenue Account","Duty Office","R4910"
"Wolverhampton City Council","http://opendatacommunities.org/id/metropolitan-district-council/wolverhampton","717234","NEW PARK - Northern House Academy","Northern House New Park 50% Autumn Term Final","87,992.00","Grant Payments","190403037","15/12/2017","Schools","Special Schools Top Up Contingency","R4700"
"Wolverhampton City Council","http://opendatacommunities.org/id/metropolitan-district-council/wolverhampton","717234","NEW PARK - Northern House Academy","Northern House New Park 50% Spring Term Interim","87,992.00","Grant Payments","190403038","15/12/2017","Schools","Special Schools Top Up Contingency","R4700"
"Wolverhampton City Council","http://opendatacommunities.org/id/metropolitan-district-council/wolverhampton","717281","Bow Street School Ltd","AP/010","6,523.60","TPP - Independent Schools","130197713","01/12/2017","Standards and Vulnerable Pupils","SEN Education OOC","R5036"
"Wolverhampton City Council","http://opendatacommunities.org/id/metropolitan-district-council/wolverhampton","717288","Cambian Whinfell School Ltd","WHI008732","22,586.20","TPP - Independent Schools","130197918","06/12/2017","Standards and Vulnerable Pupils","SEN Education OOC","R5036"
"Wolverhampton City Council","http://opendatacommunities.org/id/metropolitan-district-council/wolverhampton","717288","Cambian Whinfell School Ltd","WHI008731","22,666.67","TPP - Independent Schools","130197917","06/12/2017","Standards and Vulnerable Pupils","SEN Education OOC","R5036"
"Wolverhampton City Council","http://opendatacommunities.org/id/metropolitan-district-council/wolverhampton","717288","Cambian Whinfell School Ltd","WHI008585","6,402.67","TPP - Independent Schools","130197916","06/12/2017","Standards and Vulnerable Pupils","SEN Education OOC","R5036"
"Wolverhampton City Council","http://opendatacommunities.org/id/metropolitan-district-council/wolverhampton","717288","Cambian Whinfell School Ltd","WH1008733","6,402.67","TPP - Independent Schools","130197914","06/12/2017","Standards and Vulnerable Pupils","SEN Education OOC","R5036"
"Wolverhampton City Council","http://opendatacommunities.org/id/metropolitan-district-council/wolverhampton","717288","Cambian Whinfell School Ltd","WHI008730","22,586.20","TPP - Independent Schools","130198311","06/12/2017","Standards and Vulnerable Pupils","SEN Education OOC","R5036"
"Wolverhampton City Council","http://opendatacommunities.org/id/metropolitan-district-council/wolverhampton","717288","Cambian Whinfell School Ltd","WH1008734","3,202.27","TPP - Independent Schools","130197915","06/12/2017","Standards and Vulnerable Pupils","SEN Education OOC","R5036"
"Wolverhampton City Council","http://opendatacommunities.org/id/metropolitan-district-council/wolverhampton","717378","Grant Thornton UK LLP","8759580","5,500.00","Training Expenses","130200367","27/12/2017","Human Resources","Centralised Training","R1650"
"Wolverhampton City Council","http://opendatacommunities.org/id/metropolitan-district-council/wolverhampton","717404","Manor Multi Academy Trust - Current a/c (payment from LA)","EYPP Autumn 2017 Manor Pri","890.40","TPP - Private Nursery Education Funding","190404360","20/12/2017","Early Years","Early Years Pupil Premium","R5035"
"Wolverhampton City Council","http://opendatacommunities.org/id/metropolitan-district-council/wolverhampton","717406","Cooksongold","BI1809406","401.52","Materials for resale","130195282","01/12/2017","Adult Education","Creative Studies Delivery Area","R4008"
"Wolverhampton City Council","http://opendatacommunities.org/id/metropolitan-district-council/wolverhampton","717406","Cooksongold","BI1809406","6.84","Materials for resale","130195282","01/12/2017","Adult Education","Creative Studies Delivery Area","R4008"
"Wolverhampton City Council","http://opendatacommunities.org/id/metropolitan-district-council/wolverhampton","717406","Cooksongold","BI1812226","102.12","Materials for resale","130196326","13/12/2017","Adult Education","Creative Studies Delivery Area","R4008"
"Wolverhampton City Council","http://opendatacommunities.org/id/metropolitan-district-council/wolverhampton","717407","West Coast Trains Ltd","RINV/00013432","66,262.00","External Professional Fees","130198112","27/12/2017","-","GF - Interchange - Ph2 Train Station/MSCP/Metro Extension","C6002"
"Wolverhampton City Council","http://opendatacommunities.org/id/metropolitan-district-council/wolverhampton","717421","The Child Psychology Service","1100","978.00","Direct Work With Children","130198312","27/12/2017","Looked After Children","Adoption Support Fund","R6310"
"Wolverhampton City Council","http://opendatacommunities.org/id/metropolitan-district-council/wolverhampton","717453","SHB Hire Ltd","10892315","484.00","Hire of Vehicles","190406292","29/12/2017","Fleet Services","Fleet Management","R3200"
"Wolverhampton City Council","http://opendatacommunities.org/id/metropolitan-district-council/wolverhampton","717453","SHB Hire Ltd","10892317","484.00","Hire of Vehicles","190406294","29/12/2017","Fleet Services","Fleet Management","R3200"
"Wolverhampton City Council","http://opendatacommunities.org/id/metropolitan-district-council/wolverhampton","717453","SHB Hire Ltd","10892316","484.00","Hire of Vehicles","190406293","29/12/2017","Fleet Services","Fleet Management","R3200"
"Wolverhampton City Council","http://opendatacommunities.org/id/metropolitan-district-council/wolverhampton","717465","Restorative Thinking Limited","RT11809","2,100.00","Training Expenses","130195283","06/12/2017","Human Resources","Workforce Development","R1650"
"Wolverhampton City Council","http://opendatacommunities.org/id/metropolitan-district-council/wolverhampton","717466","Stagecoach Wolverhampton","238 bacs rej","330.00","Grant Payments","130199057","13/12/2017","Schools","Fallings Park Primary School","R4700"
"Wolverhampton City Council","http://opendatacommunities.org/id/metropolitan-district-council/wolverhampton","717480","John Moore (Tractor Parts) Ltd","SIN095614","200.47","Equipment - Purchase","190402068","13/12/2017","Fleet Services","Fleet Management","R4000"
"Wolverhampton City Council","http://opendatacommunities.org/id/metropolitan-district-council/wolverhampton","717524","T Shinton Engineering Ltd","31791","90.00","Equipment - Purchase","190399022","01/12/2017","Fleet Services","Fleet Management","R4000"
"Wolverhampton City Council","http://opendatacommunities.org/id/metropolitan-district-council/wolverhampton","717524","T Shinton Engineering Ltd","31797","195.00","Equipment - Purchase","190399023","01/12/2017","Fleet Services","Fleet Management","R4000"
"Wolverhampton City Council","http://opendatacommunities.org/id/metropolitan-district-council/wolverhampton","717591","Engaging Communities Staffordshire CIC","294","4,321.09","TPP - Social Care Support Services","130198114","13/12/2017","Head of Commissioning","Local Reform and Community Voices Grant","R5501"
"Wolverhampton City Council","http://opendatacommunities.org/id/metropolitan-district-council/wolverhampton","717591","Engaging Communities Staffordshire CIC","293","16,190.75","TPP - Social Care Support Services","130198113","13/12/2017","Head of Commissioning","Local Reform and Community Voices Grant","R5501"
"Wolverhampton City Council","http://opendatacommunities.org/id/metropolitan-district-council/wolverhampton","717602","Cherry Trees School","CTSI51","7,379.45","TPP - Independent Schools","130200752","29/12/2017","Standards and Vulnerable Pupils","SEN Education OOC","R5036"
"Wolverhampton City Council","http://opendatacommunities.org/id/metropolitan-district-council/wolverhampton","717602","Cherry Trees School","CTSI52","7,379.45","TPP - Independent Schools","130200753","29/12/2017","Standards and Vulnerable Pupils","SEN Education OOC","R5036"
"Wolverhampton City Council","http://opendatacommunities.org/id/metropolitan-district-council/wolverhampton","717605","Little Walkers Day Nursery","TFT Autumn 2017 Inst 2","9,809.28","Grant Payments","190404263","20/12/2017","Early Years","Early Years Entitlement Funding for Disadvantaged 2 Year Olds","R4700"
"Wolverhampton City Council","http://opendatacommunities.org/id/metropolitan-district-council/wolverhampton","717605","Little Walkers Day Nursery","NEF Autumn 2017 INST 2","16,427.67","TPP - Private Nursery Education Funding","190403399","15/12/2017","Early Years","Early Years Universal Entitlement for 3 and 4 Year Olds","R5035"
"Wolverhampton City Council","http://opendatacommunities.org/id/metropolitan-district-council/wolverhampton","717605","Little Walkers Day Nursery","EYPP Autumn 2017","333.90","TPP - Private Nursery Education Funding","190404359","20/12/2017","Early Years","Early Years Pupil Premium","R5035"
"Wolverhampton City Council","http://opendatacommunities.org/id/metropolitan-district-council/wolverhampton","717614","Echo Events","029","200.00","Services - Professional Fees","130198953","13/12/2017","Looked After Children","Youth Council","R4400"
"Wolverhampton City Council","http://opendatacommunities.org/id/metropolitan-district-council/wolverhampton","717647","Wolverhampton Society Of Artists","171204","1,581.25","Materials for resale","130199068","27/12/2017","Visitor Economy","Art Gallery Shop","R4008"
"Wolverhampton City Council","http://opendatacommunities.org/id/metropolitan-district-council/wolverhampton","717652","Scotts Hire Limited","190466","396.00","Hire of Plant","130198115","27/12/2017","Environmental Maintenance","Ground Maintenance West","R3201"
"Wolverhampton City Council","http://opendatacommunities.org/id/metropolitan-district-council/wolverhampton","717652","Scotts Hire Limited","190465","396.00","Hire of Plant","130198313","27/12/2017","Environmental Maintenance","Ground Maintenance West","R3201"
"Wolverhampton City Council","http://opendatacommunities.org/id/metropolitan-district-council/wolverhampton","717658","Elston Hall T/A Palmers Cross Primary","SEN Resource Base Autumn Term - Palmers Cross Primary","8,713.83","Grant Payments","190405217","21/12/2017","Schools","Special Schools Top Up Contingency","R4700"
"Wolverhampton City Council","http://opendatacommunities.org/id/metropolitan-district-council/wolverhampton","717658","Elston Hall T/A Palmers Cross Primary","T42 Autumn 17 Inst 1&2 Rising 3�s","1,100.40","Grant Payments","190404087","20/12/2017","Early Years","Early Years Entitlement Funding for Disadvantaged 2 Year Olds","R4700"
"Wolverhampton City Council","http://opendatacommunities.org/id/metropolitan-district-council/wolverhampton","717658","Elston Hall T/A Palmers Cross Primary","EYPP Autumn 2017","222.60","TPP - Private Nursery Education Funding","190404359","20/12/2017","Early Years","Early Years Pupil Premium","R5035"
"Wolverhampton City Council","http://opendatacommunities.org/id/metropolitan-district-council/wolverhampton","717660","Maintel Europe Ltd","12069064","12,684.38","Computing - Internet","130196332","27/12/2017","ICTS","Strategic ICTS (ICT Service Budget)","R4537"
"Wolverhampton City Council","http://opendatacommunities.org/id/metropolitan-district-council/wolverhampton","717691","Overley Hall School","7270","22,420.32","TPP - Independent Schools","130200369","27/12/2017","Standards and Vulnerable Pupils","SEN Education OOC","R5036"
"Wolverhampton City Council","http://opendatacommunities.org/id/metropolitan-district-council/wolverhampton","717702","Matthews Environmental Solutions Limited","1775","6,517.00","R&M - Departmental planned (external)","130198314","27/12/2017","Bereavement Services","Crematorium","R2001"
"Wolverhampton City Council","http://opendatacommunities.org/id/metropolitan-district-council/wolverhampton","717702","Matthews Environmental Solutions Limited","1750","688.00","R&M - Departmental planned (external)","130197919","13/12/2017","Bereavement Services","Crematorium","R2001"
"Wolverhampton City Council","http://opendatacommunities.org/id/metropolitan-district-council/wolverhampton","717702","Matthews Environmental Solutions Limited","1657","524.00","R&M - Departmental planned (external)","130200371","28/12/2017","Bereavement Services","Crematorium","R2001"
"Wolverhampton City Council","http://opendatacommunities.org/id/metropolitan-district-council/wolverhampton","717711","Baches Solicitors","RLL/JAH/N10016 - 0001","10,460.83","Services - Professional Fees","130196457","13/12/2017","Legal Services","Centralised External Legal Costs","R4400"
"Wolverhampton City Council","http://opendatacommunities.org/id/metropolitan-district-council/wolverhampton","717711","Baches Solicitors","RLL/JAH/N10016 - 0001","-10,460.83","Services - Professional Fees","130196457","13/12/2017","Legal Services","Centralised External Legal Costs","R4400"
"Wolverhampton City Council","http://opendatacommunities.org/id/metropolitan-district-council/wolverhampton","717711","Baches Solicitors","RLL/JAH/N10016 - 0001","10,195.83","Services - Professional Fees","130196457","13/12/2017","Legal Services","Centralised External Legal Costs","R4400"
"Wolverhampton City Council","http://opendatacommunities.org/id/metropolitan-district-council/wolverhampton","717711","Baches Solicitors","RLL/JAH/N10016 - 0001","265.00","Services - Professional Fees","130196457","13/12/2017","Legal Services","Centralised External Legal Costs","R4400"
"Wolverhampton City Council","http://opendatacommunities.org/id/metropolitan-district-council/wolverhampton","717721","Aaron Williams","00010","80.00","TPP - Maintenance Contractor - General","190398570","01/12/2017","Transportation","Cycling Schemes - Bikeability","R5720"
"Wolverhampton City Council","http://opendatacommunities.org/id/metropolitan-district-council/wolverhampton","717752","Qlickit Limited","SI - 102235","1,850.00","Services - Professional Fees","130197714","27/12/2017","Digital Transformation Programme","Digital Transformation Programme","R4400"
"Wolverhampton City Council","http://opendatacommunities.org/id/metropolitan-district-council/wolverhampton","717769","Hilton Main Lighting & Connections Ltd","507","5,439.82","R&M - Departmental response (external)","130196327","13/12/2017","Street Lighting","Street Lighting Maintenance","R2003"
"Wolverhampton City Council","http://opendatacommunities.org/id/metropolitan-district-council/wolverhampton","717769","Hilton Main Lighting & Connections Ltd","512","1,849.60","R&M - Departmental response (external)","130197150","27/12/2017","Street Lighting","Street Lighting Maintenance","R2003"
"Wolverhampton City Council","http://opendatacommunities.org/id/metropolitan-district-council/wolverhampton","717769","Hilton Main Lighting & Connections Ltd","506","4,439.04","R&M - Departmental response (external)","130196179","08/12/2017","Street Lighting","Street Lighting Maintenance","R2003"
"Wolverhampton City Council","http://opendatacommunities.org/id/metropolitan-district-council/wolverhampton","717863","Donna Widdows","EYPP Autumn 2017","111.30","TPP - Private Nursery Education Funding","190404359","20/12/2017","Early Years","Early Years Pupil Premium","R5035"
"Wolverhampton City Council","http://opendatacommunities.org/id/metropolitan-district-council/wolverhampton","717863","Donna Widdows","TFT Autumn 2017 Inst 2","440.16","Grant Payments","190404263","20/12/2017","Early Years","Early Years Entitlement Funding for Disadvantaged 2 Year Olds","R4700"
"Wolverhampton City Council","http://opendatacommunities.org/id/metropolitan-district-council/wolverhampton","717863","Donna Widdows","NEF Autumn 2017 INST 2","357.00","TPP - Private Nursery Education Funding","190403399","15/12/2017","Early Years","Early Years Universal Entitlement for 3 and 4 Year Olds","R5035"
"Wolverhampton City Council","http://opendatacommunities.org/id/metropolitan-district-council/wolverhampton","717867","Battlefield Landscapes Ltd","1879","5,900.00","Materials","130196649","06/12/2017","Environmental Maintenance","Ground Maintenance West","R4007"
"Wolverhampton City Council","http://opendatacommunities.org/id/metropolitan-district-council/wolverhampton","717890","Preventx Limited","PY295790","296.00","TPP - Public Health Contracts","130199040","21/12/2017","Contracts","Sexual Health","R5060"
"Wolverhampton City Council","http://opendatacommunities.org/id/metropolitan-district-council/wolverhampton","717890","Preventx Limited","PY295790","-296.00","TPP - Public Health Contracts","130199040","21/12/2017","Contracts","Sexual Health","R5060"
"Wolverhampton City Council","http://opendatacommunities.org/id/metropolitan-district-council/wolverhampton","717890","Preventx Limited","PY295790","296.00","TPP - Public Health Contracts","130199040","21/12/2017","Contracts","Sexual Health","R5060"
"Wolverhampton City Council","http://opendatacommunities.org/id/metropolitan-district-council/wolverhampton","717932","Servelec Synergy Limited","0033601308","4,020.00","Computing - Purchase of Software","130196180","13/12/2017","Early Intervention","HOS Early Intervention","R4531"
"Wolverhampton City Council","http://opendatacommunities.org/id/metropolitan-district-council/wolverhampton","717933","Derby Comm. Health Ser. NHS Found. Trust","11895315 October 2017/18","135.20","TPP - Public Health Contracts","190402179","13/12/2017","Contracts","Sexual Health","R5060"
"Wolverhampton City Council","http://opendatacommunities.org/id/metropolitan-district-council/wolverhampton","717980","Phormium Ltd t/a Brannie Ties","4201","188.40","Clothing / Uniforms","130196650","13/12/2017","Customer Services","City Direct","R4201"
"Wolverhampton City Council","http://opendatacommunities.org/id/metropolitan-district-council/wolverhampton","717995","Barnardo Services Limited","242002363","122,917.00","TPP - Social Care Support Services","130196851","20/12/2017","Specialist Support","Therapeutic Support Team","R5501"
"Wolverhampton City Council","http://opendatacommunities.org/id/metropolitan-district-council/wolverhampton","717995","Barnardo Services Limited","242002364","73,750.00","TPP - Social Care Support Services","130196852","20/12/2017","Specialist Support","Therapeutic Support Team","R5501"
"Wolverhampton City Council","http://opendatacommunities.org/id/metropolitan-district-council/wolverhampton","717999","Mark Finnis Training & Consultancy Ltd","RPMFTC420","896.60","Training Expenses","130198673","29/12/2017","Human Resources","Workforce Development","R1650"
"Wolverhampton City Council","http://opendatacommunities.org/id/metropolitan-district-council/wolverhampton","717999","Mark Finnis Training & Consultancy Ltd","RPMFTC419","2,250.00","Training Expenses","130198672","29/12/2017","Human Resources","Workforce Development","R1650"
"Wolverhampton City Council","http://opendatacommunities.org/id/metropolitan-district-council/wolverhampton","717999","Mark Finnis Training & Consultancy Ltd","RPMFTC404","5,973.30","Training Expenses","130195068","20/12/2017","Human Resources","Workforce Development","R1650"
"Wolverhampton City Council","http://opendatacommunities.org/id/metropolitan-district-council/wolverhampton","718024","1st Planner Ltd","RT219","700.00","Services - Professional Fees","130197327","13/12/2017","School Planning & Resources","1st Planner - School Sufficiency","R4400"
"Wolverhampton City Council","http://opendatacommunities.org/id/metropolitan-district-council/wolverhampton","718024","1st Planner Ltd","RT212","5,000.00","Services - Professional Fees","130197151","06/12/2017","School Planning & Resources","1st Planner - School Sufficiency","R4400"
"Wolverhampton City Council","http://opendatacommunities.org/id/metropolitan-district-council/wolverhampton","718062","Womersley Ltd","222708","1,000.00","Services - Professional Fees","130195800","06/12/2017","Planning","Queen Street Townscape Heritage (HLF)","R4400"
"Wolverhampton City Council","http://opendatacommunities.org/id/metropolitan-district-council/wolverhampton","718062","Womersley Ltd","222707","400.00","Services - Professional Fees","130195799","06/12/2017","Planning","Queen Street Townscape Heritage (HLF)","R4400"
"Wolverhampton City Council","http://opendatacommunities.org/id/metropolitan-district-council/wolverhampton","718108","BTE Plant Sales Ltd","164871","502.06","Equipment - Purchase","190404650","20/12/2017","Fleet Services","Fleet Management","R4000"
"Wolverhampton City Council","http://opendatacommunities.org/id/metropolitan-district-council/wolverhampton","718108","BTE Plant Sales Ltd","164871","109.80","Equipment - Purchase","190404650","20/12/2017","Fleet Services","Fleet Management","R4000"
"Wolverhampton City Council","http://opendatacommunities.org/id/metropolitan-district-council/wolverhampton","718108","BTE Plant Sales Ltd","164795","117.91","Equipment - Purchase","190404649","20/12/2017","Fleet Services","Fleet Management","R4000"
"Wolverhampton City Council","http://opendatacommunities.org/id/metropolitan-district-council/wolverhampton","718139","Ability First Aid Training","AB4423","600.00","Training Expenses","130198674","29/12/2017","Looked After Children","Fostering Team & Allowances","R1650"
"Wolverhampton City Council","http://opendatacommunities.org/id/metropolitan-district-council/wolverhampton","718187","Auctus Training Solutions","535","1,125.00","Medical Fees","130200380","27/12/2017","Skills","IMPACT","R1400"
"Wolverhampton City Council","http://opendatacommunities.org/id/metropolitan-district-council/wolverhampton","718187","Auctus Training Solutions","480","4,400.00","Training Expenses","130198675","08/12/2017","Skills","IMPACT","R1650"
"Wolverhampton City Council","http://opendatacommunities.org/id/metropolitan-district-council/wolverhampton","718217","LCP Properties Limited","615938","62.29","Service Charges","130198838","13/12/2017","Parking Services","Shopmobility","R2205"
"Wolverhampton City Council","http://opendatacommunities.org/id/metropolitan-district-council/wolverhampton","718234","ADI UK Limited","28171","200.00","Marketing \ Non-staff advertising","130196458","13/12/2017","Markets","Wolverhampton Indoor and Open Market","R4317"
"Wolverhampton City Council","http://opendatacommunities.org/id/metropolitan-district-council/wolverhampton","718234","ADI UK Limited","28223","500.00","Marketing \ Non-staff advertising","130197152","20/12/2017","Markets","Wolverhampton Indoor and Open Market","R4317"
"Wolverhampton City Council","http://opendatacommunities.org/id/metropolitan-district-council/wolverhampton","718237","Rollover","SI545321","231.73","Provisions (Resale)","130195069","01/12/2017","Leisure Services","WV Active Catering","R4102"
"Wolverhampton City Council","http://opendatacommunities.org/id/metropolitan-district-council/wolverhampton","718237","Rollover","SI549723","251.82","Provisions (Resale)","130197005","21/12/2017","Leisure Services","WV Active Catering","R4102"
"Wolverhampton City Council","http://opendatacommunities.org/id/metropolitan-district-council/wolverhampton","718247","Carrie Slawinska","CS024","393.75","Services - Professional Fees","130199251","20/12/2017","Visitor Economy","Technical Support - ACE NPO WAG","R4400"
"Wolverhampton City Council","http://opendatacommunities.org/id/metropolitan-district-council/wolverhampton","718247","Carrie Slawinska","CS025","275.00","Services - Professional Fees","130199252","27/12/2017","Visitor Economy","Technical Support - ACE NPO WAG","R4400"
"Wolverhampton City Council","http://opendatacommunities.org/id/metropolitan-district-council/wolverhampton","718273","Mr Lee Parkhill","73195 20/11/2017","1,250.00","Services - Professional Fees","130196854","15/12/2017","Legal Services","Centralised External Legal Costs","R4400"
"Wolverhampton City Council","http://opendatacommunities.org/id/metropolitan-district-council/wolverhampton","718290","Autocraft Telford Ltd","21201","190.00","Services - Professional Fees","190403334","15/12/2017","Fleet Services","Fleet Management","R4400"
"Wolverhampton City Council","http://opendatacommunities.org/id/metropolitan-district-council/wolverhampton","718290","Autocraft Telford Ltd","21201","76.88","Services - Professional Fees","190403334","15/12/2017","Fleet Services","Fleet Management","R4400"
"Wolverhampton City Council","http://opendatacommunities.org/id/metropolitan-district-council/wolverhampton","718290","Autocraft Telford Ltd","21201","5.00","Services - Professional Fees","190403334","15/12/2017","Fleet Services","Fleet Management","R4400"
"Wolverhampton City Council","http://opendatacommunities.org/id/metropolitan-district-council/wolverhampton","718292","First Aid Warehouse","316836","1.10","Materials","130195801","08/12/2017","Mental Health Assesment & Care Management","Mental Health Assessment & Care Management","R4007"
"Wolverhampton City Council","http://opendatacommunities.org/id/metropolitan-district-council/wolverhampton","718292","First Aid Warehouse","319318","9.30","Materials","130197715","27/12/2017","Fleet Services","Fleet Management","R4007"
"Wolverhampton City Council","http://opendatacommunities.org/id/metropolitan-district-council/wolverhampton","718292","First Aid Warehouse","319956","29.85","Materials","130198116","27/12/2017","Environmental Maintenance","Parks - Ranger Service","R4007"
"Wolverhampton City Council","http://opendatacommunities.org/id/metropolitan-district-council/wolverhampton","718320","Tom Vehicle Rental","7046652","176.00","Hire of Vehicles","190406318","29/12/2017","Fleet Services","Fleet Management","R3200"
"Wolverhampton City Council","http://opendatacommunities.org/id/metropolitan-district-council/wolverhampton","718320","Tom Vehicle Rental","7046648","176.00","Hire of Vehicles","190406314","29/12/2017","Fleet Services","Fleet Management","R3200"
"Wolverhampton City Council","http://opendatacommunities.org/id/metropolitan-district-council/wolverhampton","718320","Tom Vehicle Rental","19005211","176.00","Hire of Vehicles","190406304","29/12/2017","Fleet Services","Fleet Management","R3200"
"Wolverhampton City Council","http://opendatacommunities.org/id/metropolitan-district-council/wolverhampton","718320","Tom Vehicle Rental","7046651","176.00","Hire of Vehicles","190406317","29/12/2017","Fleet Services","Fleet Management","R3200"
"Wolverhampton City Council","http://opendatacommunities.org/id/metropolitan-district-council/wolverhampton","718320","Tom Vehicle Rental","7046649","176.00","Hire of Vehicles","190406315","29/12/2017","Fleet Services","Fleet Management","R3200"
"Wolverhampton City Council","http://opendatacommunities.org/id/metropolitan-district-council/wolverhampton","718320","Tom Vehicle Rental","7046653","176.00","Hire of Vehicles","190406319","29/12/2017","Fleet Services","Fleet Management","R3200"
"Wolverhampton City Council","http://opendatacommunities.org/id/metropolitan-district-council/wolverhampton","718320","Tom Vehicle Rental","19005210","176.00","Hire of Vehicles","190406303","29/12/2017","Fleet Services","Fleet Management","R3200"
"Wolverhampton City Council","http://opendatacommunities.org/id/metropolitan-district-council/wolverhampton","718320","Tom Vehicle Rental","7046654","176.00","Hire of Vehicles","190406320","29/12/2017","Fleet Services","Fleet Management","R3200"
"Wolverhampton City Council","http://opendatacommunities.org/id/metropolitan-district-council/wolverhampton","718320","Tom Vehicle Rental","7046650","176.00","Hire of Vehicles","190406316","29/12/2017","Fleet Services","Fleet Management","R3200"
"Wolverhampton City Council","http://opendatacommunities.org/id/metropolitan-district-council/wolverhampton","718321","London Hire Ltd","INV00031869","603.90","Hire of Vehicles","190406335","29/12/2017","Fleet Services","Fleet Management","R3200"
"Wolverhampton City Council","http://opendatacommunities.org/id/metropolitan-district-council/wolverhampton","718321","London Hire Ltd","INV00031874","924.00","Hire of Vehicles","190406339","29/12/2017","Fleet Services","Fleet Management","R3200"
"Wolverhampton City Council","http://opendatacommunities.org/id/metropolitan-district-council/wolverhampton","718321","London Hire Ltd","INV00031563","61.50","Hire of Vehicles","190406334","29/12/2017","Fleet Services","Fleet Management","R3200"
"Wolverhampton City Council","http://opendatacommunities.org/id/metropolitan-district-council/wolverhampton","718321","London Hire Ltd","INV00031873","924.00","Hire of Vehicles","190406338","29/12/2017","Fleet Services","Fleet Management","R3200"
"Wolverhampton City Council","http://opendatacommunities.org/id/metropolitan-district-council/wolverhampton","718321","London Hire Ltd","CR00001751","-20.00","Hire of Vehicles","190406321","29/12/2017","Fleet Services","Fleet Management","R3200"
"Wolverhampton City Council","http://opendatacommunities.org/id/metropolitan-district-council/wolverhampton","718321","London Hire Ltd","INV00031875","924.00","Hire of Vehicles","190406340","29/12/2017","Fleet Services","Fleet Management","R3200"
"Wolverhampton City Council","http://opendatacommunities.org/id/metropolitan-district-council/wolverhampton","718321","London Hire Ltd","INV00031871","330.00","Hire of Vehicles","190406336","29/12/2017","Fleet Services","Fleet Management","R3200"
"Wolverhampton City Council","http://opendatacommunities.org/id/metropolitan-district-council/wolverhampton","718321","London Hire Ltd","INV00031871","603.90","Hire of Vehicles","190406336","29/12/2017","Fleet Services","Fleet Management","R3200"
"Wolverhampton City Council","http://opendatacommunities.org/id/metropolitan-district-council/wolverhampton","718321","London Hire Ltd","INV00031522","82.35","Hire of Vehicles","190406333","29/12/2017","Fleet Services","Fleet Management","R3200"
"Wolverhampton City Council","http://opendatacommunities.org/id/metropolitan-district-council/wolverhampton","718321","London Hire Ltd","INV00031876","603.90","Hire of Vehicles","190406341","29/12/2017","Fleet Services","Fleet Management","R3200"
"Wolverhampton City Council","http://opendatacommunities.org/id/metropolitan-district-council/wolverhampton","718321","London Hire Ltd","INV00031872","330.00","Hire of Vehicles","190406337","29/12/2017","Fleet Services","Fleet Management","R3200"
"Wolverhampton City Council","http://opendatacommunities.org/id/metropolitan-district-council/wolverhampton","718328","Intelligent Data Collection Ltd","0000094418","700.00","Construction and Conversion","130197328","20/12/2017","-","Safety Programme","C1100"
"Wolverhampton City Council","http://opendatacommunities.org/id/metropolitan-district-council/wolverhampton","718344","Charter Office Equipment Limited","172519","4,962.00","Computing - Purchase of Hardware","130196858","01/12/2017","ICTS","Strategic ICTS (ICT Service Budget)","R4530"
"Wolverhampton City Council","http://opendatacommunities.org/id/metropolitan-district-council/wolverhampton","718349","Dr Shaheen Yousaf Chaudhry","2919/2984","8,754.40","Services - Professional Fees","190401826","13/12/2017","Safeguarding","MCA General","R4400"
"Wolverhampton City Council","http://opendatacommunities.org/id/metropolitan-district-council/wolverhampton","718367","Certas Energy UK","8939656","1,009.00","Heating Oil","130198840","29/12/2017","Highways Maintenance","Patching","R2102"
"Wolverhampton City Council","http://opendatacommunities.org/id/metropolitan-district-council/wolverhampton","718367","Certas Energy UK","8879342","677.50","Heating Oil","130197329","20/12/2017","Highways Maintenance","Patching","R2102"
"Wolverhampton City Council","http://opendatacommunities.org/id/metropolitan-district-council/wolverhampton","718367","Certas Energy UK","8751097","1,231.49","Heating Oil","130198117","06/12/2017","Environmental Maintenance","Ground Maintenance East","R2102"
"Wolverhampton City Council","http://opendatacommunities.org/id/metropolitan-district-council/wolverhampton","718367","Certas Energy UK","8870189","127.80","Equipment - Purchase","190400154","06/12/2017","Fleet Services","Fleet Management","R4000"
"Wolverhampton City Council","http://opendatacommunities.org/id/metropolitan-district-council/wolverhampton","718367","Certas Energy UK","8953991","400.50","Equipment - Purchase","190402045","13/12/2017","Fleet Services","Fleet Management","R4000"
"Wolverhampton City Council","http://opendatacommunities.org/id/metropolitan-district-council/wolverhampton","718367","Certas Energy UK","8952793","189.00","Equipment - Purchase","190403346","15/12/2017","Fleet Services","Fleet Management","R4000"
"Wolverhampton City Council","http://opendatacommunities.org/id/metropolitan-district-council/wolverhampton","718367","Certas Energy UK","8870186","38.28","Equipment - Purchase","190399035","01/12/2017","Fleet Services","Fleet Management","R4000"
"Wolverhampton City Council","http://opendatacommunities.org/id/metropolitan-district-council/wolverhampton","718367","Certas Energy UK","8806578","1,252.42","Heating Oil","130196184","06/12/2017","School Planning & Resources","Towers Outdoor Education Centre","R2102"
"Wolverhampton City Council","http://opendatacommunities.org/id/metropolitan-district-council/wolverhampton","718380","Green Machines Sweepers UK Ltd","108016","135.80","Equipment - Purchase","190398988","01/12/2017","Fleet Services","Fleet Management","R4000"
"Wolverhampton City Council","http://opendatacommunities.org/id/metropolitan-district-council/wolverhampton","718395","Beyond Curious Ltd","0218","187.50","Marketing \ Non-staff advertising","130194532","01/12/2017","Corporate Communications","Communications & Marketing - General","R4317"
"Wolverhampton City Council","http://opendatacommunities.org/id/metropolitan-district-council/wolverhampton","718395","Beyond Curious Ltd","0217","65.00","Marketing \ Non-staff advertising","130194531","01/12/2017","Corporate Communications","Communications & Marketing - General","R4317"
"Wolverhampton City Council","http://opendatacommunities.org/id/metropolitan-district-council/wolverhampton","718411","NOCN","0000058800","1,088.00","Exam Expenses (Non-Employee)","130197920","20/12/2017","Adult Education","Work Related Studies","R4630"
"Wolverhampton City Council","http://opendatacommunities.org/id/metropolitan-district-council/wolverhampton","718413","Harj Bains Estate Agents","0004658","425.00","Rent","130198954","27/12/2017","Child Protection","CIN/CP Social Work Unit - Area 3","R2200"
"Wolverhampton City Council","http://opendatacommunities.org/id/metropolitan-district-council/wolverhampton","718416","Mark Woollett","00007","880.00","TPP - Maintenance Contractor - General","190398580","01/12/2017","Transportation","Cycling Schemes - Bikeability","R5720"
"Wolverhampton City Council","http://opendatacommunities.org/id/metropolitan-district-council/wolverhampton","718421","Mel Riley Counselling & Coach.","1427","960.00","Services - Professional Fees","130198359","13/12/2017","Child Protection","CIN/CP Social Work Unit - Area 5","R4400"
"Wolverhampton City Council","http://opendatacommunities.org/id/metropolitan-district-council/wolverhampton","718421","Mel Riley Counselling & Coach.","1427","-960.00","Services - Professional Fees","130198359","13/12/2017","Child Protection","CIN/CP Social Work Unit - Area 5","R4400"
"Wolverhampton City Council","http://opendatacommunities.org/id/metropolitan-district-council/wolverhampton","718421","Mel Riley Counselling & Coach.","1427","960.00","Services - Professional Fees","130198359","13/12/2017","Child Protection","CIN/CP Social Work Unit - Area 5","R4400"
"Wolverhampton City Council","http://opendatacommunities.org/id/metropolitan-district-council/wolverhampton","718432","Tracy Boss","00009","1,010.00","TPP - Maintenance Contractor - General","190398579","01/12/2017","Transportation","Cycling Schemes - Bikeability","R5720"
"Wolverhampton City Council","http://opendatacommunities.org/id/metropolitan-district-council/wolverhampton","718437","Naomi Greaves","171117","1,946.87","Services - Professional Fees","130196651","13/12/2017","Visitor Economy","Technical Support - ACE NPO WAG","R4400"
"Wolverhampton City Council","http://opendatacommunities.org/id/metropolitan-district-council/wolverhampton","718450","Furnace Mill Fishery Ltd","135","1,250.00","R&M - Departmental planned (external)","130197006","20/12/2017","Environmental Maintenance","Parks / Open Spaces - Repairs & Maintenance","R2001"
"Wolverhampton City Council","http://opendatacommunities.org/id/metropolitan-district-council/wolverhampton","718452","Baby Sienna Ltd","NEF Autumn 2017 INST 2","6,909.80","TPP - Private Nursery Education Funding","190403399","15/12/2017","Early Years","Early Years Universal Entitlement for 3 and 4 Year Olds","R5035"
"Wolverhampton City Council","http://opendatacommunities.org/id/metropolitan-district-council/wolverhampton","718452","Baby Sienna Ltd","TFT Autumn 2017 Inst 2","2,201.32","Grant Payments","190404263","20/12/2017","Early Years","Early Years Entitlement Funding for Disadvantaged 2 Year Olds","R4700"
"Wolverhampton City Council","http://opendatacommunities.org/id/metropolitan-district-council/wolverhampton","718489","PowerON Platforms Ltd","1645","2,450.00","Intangible Assets / Computer Software","130198315","27/12/2017","-","ICT General Programme","C4005"
"Wolverhampton City Council","http://opendatacommunities.org/id/metropolitan-district-council/wolverhampton","718490","NCH CONSULTANCY SERVICES LTD","NCHCS2408","4,750.00","Services - Consultants","130195992","06/12/2017","Corporate Asset Management","Assets Service Transformation Programme","R4404"
"Wolverhampton City Council","http://opendatacommunities.org/id/metropolitan-district-council/wolverhampton","718497","11KBW Limited","HD/SC[011173 07/11/2017 JC","2,625.00","Services - Professional Fees","130195288","06/12/2017","Legal Services","Centralised External Legal Costs","R4400"
"Wolverhampton City Council","http://opendatacommunities.org/id/metropolitan-district-council/wolverhampton","718543","Campus Living Villages","P16030020171208","149.00","Client Allowances","190401727","13/12/2017","Looked After Children","LAC Transitions Team","R6301"
"Wolverhampton City Council","http://opendatacommunities.org/id/metropolitan-district-council/wolverhampton","718543","Campus Living Villages","P16108120171219","298.00","Client Allowances","190404712","20/12/2017","Looked After Children","LAC Transitions Team","R6301"
"Wolverhampton City Council","http://opendatacommunities.org/id/metropolitan-district-council/wolverhampton","718543","Campus Living Villages","P15998820171201","149.00","TPP - Placement Foster Care Inhouse","190399484","06/12/2017","Looked After Children","LAC Transitions Team","R5601"
"Wolverhampton City Council","http://opendatacommunities.org/id/metropolitan-district-council/wolverhampton","718552","Chris Broughton","WAG012","1,500.00","Services - Professional Fees","130197007","20/12/2017","Visitor Economy","Curatorial - Cultural Learning","R4400"
"Wolverhampton City Council","http://opendatacommunities.org/id/metropolitan-district-council/wolverhampton","718603","Project Farm","1017BLC","150.00","Services - Professional Fees","130194433","21/12/2017","Looked After Children","Pupil Premium","R4400"
"Wolverhampton City Council","http://opendatacommunities.org/id/metropolitan-district-council/wolverhampton","718603","Project Farm","1017BLC","-150.00","Services - Professional Fees","130194433","21/12/2017","Looked After Children","Pupil Premium","R4400"
"Wolverhampton City Council","http://opendatacommunities.org/id/metropolitan-district-council/wolverhampton","718603","Project Farm","1017BLC","150.00","Services - Professional Fees","130194433","21/12/2017","Looked After Children","Pupil Premium","R4400"
"Wolverhampton City Council","http://opendatacommunities.org/id/metropolitan-district-council/wolverhampton","718619","Lee Stowers","002","600.00","Services - Professional Fees","130195289","06/12/2017","Visitor Economy","Technical Support - ACE NPO WAG","R4400"
"Wolverhampton City Council","http://opendatacommunities.org/id/metropolitan-district-council/wolverhampton","718666","Urban Heard: Y E S CIC","0004 - 18 - 06","3,804.83","TPP - Public Health Contracts","130198118","13/12/2017","Contracts","Healthy Lifestyles","R5060"
"Wolverhampton City Council","http://opendatacommunities.org/id/metropolitan-district-council/wolverhampton","718666","Urban Heard: Y E S CIC","0004 - 18 - 06","0.01","TPP - Public Health Contracts","130198118","13/12/2017","Contracts","Healthy Lifestyles","R5060"
"Wolverhampton City Council","http://opendatacommunities.org/id/metropolitan-district-council/wolverhampton","718680","Gails Blinds Ltd","151117","116.10","Equipment - Purchase","130196859","13/12/2017","Learning Disability Provider","Duke Street Bungalows","R4000"
"Wolverhampton City Council","http://opendatacommunities.org/id/metropolitan-district-council/wolverhampton","718680","Gails Blinds Ltd","151117","1,421.10","Equipment - Purchase","130196859","13/12/2017","Learning Disability Provider","Learning Disabilities Management","R4000"
"Wolverhampton City Council","http://opendatacommunities.org/id/metropolitan-district-council/wolverhampton","718702","The National Teaching and Advisory Service","9827019","889.00","TPP - Alternative Provision of Education","130197717","06/12/2017","Standards and Vulnerable Pupils","Post 16 SEN Provision","R5037"
"Wolverhampton City Council","http://opendatacommunities.org/id/metropolitan-district-council/wolverhampton","718743","Open Minds High Ava Solutions Ltd","2211/WCC - SP","1,050.00","Computing - Maint Agreements","130197008","20/12/2017","ICTS","Strategic ICTS (ICT Service Budget)","R4534"
"Wolverhampton City Council","http://opendatacommunities.org/id/metropolitan-district-council/wolverhampton","718746","Helping Hands Tuition","11","112.00","Services - Professional Fees","130197496","06/12/2017","Looked After Children","Pupil Premium","R4400"
"Wolverhampton City Council","http://opendatacommunities.org/id/metropolitan-district-council/wolverhampton","718752","Hydrock Contracting Ltd","INV008022","332,549.86","Construction and Conversion","130196187","06/12/2017","-","Site Remediation Farndale","C1100"
"Wolverhampton City Council","http://opendatacommunities.org/id/metropolitan-district-council/wolverhampton","718752","Hydrock Contracting Ltd","INV008023","41,954.95","Construction and Conversion","130196188","06/12/2017","-","Site Remediation Farndale","C1100"
"Wolverhampton City Council","http://opendatacommunities.org/id/metropolitan-district-council/wolverhampton","718754","Liddell Electrical Distributors","8041152 - 00","1,339.25","Materials","130197154","27/12/2017","Street Lighting","Street Lighting Maintenance","R4007"
"Wolverhampton City Council","http://opendatacommunities.org/id/metropolitan-district-council/wolverhampton","718754","Liddell Electrical Distributors","8044081 - 01","1.10","Materials","130197156","27/12/2017","Street Lighting","Street Lighting Maintenance","R4007"
"Wolverhampton City Council","http://opendatacommunities.org/id/metropolitan-district-council/wolverhampton","718754","Liddell Electrical Distributors","8048419 - 02","96.32","Materials","130197163","01/12/2017","Street Lighting","Christmas Illuminations","R4007"
"Wolverhampton City Council","http://opendatacommunities.org/id/metropolitan-district-council/wolverhampton","718754","Liddell Electrical Distributors","8049110-01","1,380.31","Materials","130199104","27/12/2017","Street Lighting","Christmas Illuminations","R4007"
"Wolverhampton City Council","http://opendatacommunities.org/id/metropolitan-district-council/wolverhampton","718754","Liddell Electrical Distributors","8043159 - 00","179.55","Materials","130197155","27/12/2017","Street Lighting","Street Lighting Maintenance","R4007"
"Wolverhampton City Council","http://opendatacommunities.org/id/metropolitan-district-council/wolverhampton","718754","Liddell Electrical Distributors","8044081 - 02","139.50","Materials","130197157","27/12/2017","Street Lighting","Street Lighting Maintenance","R4007"
"Wolverhampton City Council","http://opendatacommunities.org/id/metropolitan-district-council/wolverhampton","718754","Liddell Electrical Distributors","8046809 - 00","826.42","Materials","130197159","01/12/2017","Street Lighting","Street Lighting Maintenance","R4007"
"Wolverhampton City Council","http://opendatacommunities.org/id/metropolitan-district-council/wolverhampton","718754","Liddell Electrical Distributors","8044081 - 03","95.70","Materials","130197158","27/12/2017","Street Lighting","Street Lighting Maintenance","R4007"
"Wolverhampton City Council","http://opendatacommunities.org/id/metropolitan-district-council/wolverhampton","718754","Liddell Electrical Distributors","8050011 - 00","1,663.05","Materials","130198119","27/12/2017","Street Lighting","Street Lighting Maintenance","R4007"
"Wolverhampton City Council","http://opendatacommunities.org/id/metropolitan-district-council/wolverhampton","718754","Liddell Electrical Distributors","8050011 - 00","-1,663.05","Materials","130198119","27/12/2017","Street Lighting","Street Lighting Maintenance","R4007"
"Wolverhampton City Council","http://opendatacommunities.org/id/metropolitan-district-council/wolverhampton","718754","Liddell Electrical Distributors","8050011 - 00","1,405.00","Materials","130198119","27/12/2017","Street Lighting","Street Lighting Maintenance","R4007"
"Wolverhampton City Council","http://opendatacommunities.org/id/metropolitan-district-council/wolverhampton","718754","Liddell Electrical Distributors","8049061-02","40.24","Materials","130199105","20/12/2017","Street Lighting","Street Lighting Maintenance","R4007"
"Wolverhampton City Council","http://opendatacommunities.org/id/metropolitan-district-council/wolverhampton","718754","Liddell Electrical Distributors","8048419 - 00","807.31","Materials","130197161","01/12/2017","Street Lighting","Christmas Illuminations","R4007"
"Wolverhampton City Council","http://opendatacommunities.org/id/metropolitan-district-council/wolverhampton","718754","Liddell Electrical Distributors","8041151 - 00","354.14","Materials","130197153","27/12/2017","Street Lighting","Street Lighting Maintenance","R4007"
"Wolverhampton City Council","http://opendatacommunities.org/id/metropolitan-district-council/wolverhampton","718754","Liddell Electrical Distributors","8050077 - 00","49.93","Materials","130198316","27/12/2017","Street Lighting","Signs Illuminated","R4007"
"Wolverhampton City Council","http://opendatacommunities.org/id/metropolitan-district-council/wolverhampton","718754","Liddell Electrical Distributors","8050077 - 00","-49.93","Materials","130198316","27/12/2017","Street Lighting","Signs Illuminated","R4007"
"Wolverhampton City Council","http://opendatacommunities.org/id/metropolitan-district-council/wolverhampton","718754","Liddell Electrical Distributors","8050077 - 00","44.23","Materials","130198316","27/12/2017","Street Lighting","Signs Illuminated","R4007"
"Wolverhampton City Council","http://opendatacommunities.org/id/metropolitan-district-council/wolverhampton","718754","Liddell Electrical Distributors","8048419 - 01","474.40","Materials","130197162","01/12/2017","Street Lighting","Christmas Illuminations","R4007"
"Wolverhampton City Council","http://opendatacommunities.org/id/metropolitan-district-council/wolverhampton","718766","X-ray Touring LLP","30/11/2017 blueform","55,000.00","Services - Professional Fees","130197735","01/12/2017","Visitor Economy","Civic & Wulfrun In-House Promotions","R4400"
"Wolverhampton City Council","http://opendatacommunities.org/id/metropolitan-district-council/wolverhampton","718821","Barbara Howells","BH WFH17/18 M8","18.50","Car Allowances","190404371","20/12/2017","Healthier Places Service","Healthy Lifestyles Team","R3400"
"Wolverhampton City Council","http://opendatacommunities.org/id/metropolitan-district-council/wolverhampton","718831","Chambers Touring Ltd","20/12/2017 blue form","21,055.83","Services - Professional Fees","130199368","21/12/2017","Visitor Economy","Civic & Wulfrun In-House Promotions","R4400"
"Wolverhampton City Council","http://opendatacommunities.org/id/metropolitan-district-council/wolverhampton","718837","East Park Academy","T42 Autumn 17 Inst 1&2 Rising 3�s","2,043.60","Grant Payments","190404087","20/12/2017","Early Years","Early Years Entitlement Funding for Disadvantaged 2 Year Olds","R4700"
"Wolverhampton City Council","http://opendatacommunities.org/id/metropolitan-district-council/wolverhampton","718837","East Park Academy","EYPP Autumn 2017","890.40","TPP - Private Nursery Education Funding","190404359","20/12/2017","Early Years","Early Years Pupil Premium","R5035"
"Wolverhampton City Council","http://opendatacommunities.org/id/metropolitan-district-council/wolverhampton","718837","East Park Academy","SEN Resource Base Autumn Term 2017 - East Park Academy","21,881.22","Grant Payments","190405216","21/12/2017","Schools","Special Schools Top Up Contingency","R4700"
"Wolverhampton City Council","http://opendatacommunities.org/id/metropolitan-district-council/wolverhampton","718838","Manor Multi Academy Trust T/A Hill Avenue Academy","EYPP Autumn 2017","890.40","TPP - Private Nursery Education Funding","190404359","20/12/2017","Early Years","Early Years Pupil Premium","R5035"
"Wolverhampton City Council","http://opendatacommunities.org/id/metropolitan-district-council/wolverhampton","718838","Manor Multi Academy Trust T/A Hill Avenue Academy","T42 Autumn 17 Inst 1&2 Rising 3�s","1,965.00","Grant Payments","190404087","20/12/2017","Early Years","Early Years Entitlement Funding for Disadvantaged 2 Year Olds","R4700"
"Wolverhampton City Council","http://opendatacommunities.org/id/metropolitan-district-council/wolverhampton","718854","AEG Live UK Ltd","03/12/2017 blue form","19,731.45","Services - Professional Fees","130199339","20/12/2017","Visitor Economy","Civic & Wulfrun Outhouse & Other Comercial Events","R4400"
"Wolverhampton City Council","http://opendatacommunities.org/id/metropolitan-district-council/wolverhampton","718854","AEG Live UK Ltd","24/11/17 blue form","32,196.60","Services - Professional Fees","130197731","01/12/2017","Visitor Economy","Civic & Wulfrun Outhouse & Other Comercial Events","R4400"
"Wolverhampton City Council","http://opendatacommunities.org/id/metropolitan-district-council/wolverhampton","718864","Phil McIntyre Promotions","11/12/2017 blue form","6,227.52","Services - Professional Fees","130199263","20/12/2017","Visitor Economy","Civic & Wulfrun In-House Promotions","R4400"
"Wolverhampton City Council","http://opendatacommunities.org/id/metropolitan-district-council/wolverhampton","718868","The Agency Group Ltd","30/11/2017 blue form","4,250.00","Services - Professional Fees","130197732","01/12/2017","Visitor Economy","Civic & Wulfrun In-House Promotions","R4400"
"Wolverhampton City Council","http://opendatacommunities.org/id/metropolitan-district-council/wolverhampton","718894","Sam Mace","718909","75.00","Services - Professional Fees","130196652","13/12/2017","Visitor Economy","Art Galleries - Schools Art SLA Service","R4400"
"Wolverhampton City Council","http://opendatacommunities.org/id/metropolitan-district-council/wolverhampton","718894","Sam Mace","718911","175.00","Services - Professional Fees","130198676","29/12/2017","Visitor Economy","Art Galleries - Schools Art SLA Service","R4400"
"Wolverhampton City Council","http://opendatacommunities.org/id/metropolitan-district-council/wolverhampton","718894","Sam Mace","718911","75.00","Services - Professional Fees","130198676","29/12/2017","Visitor Economy","Art Galleries - Schools Art SLA Service","R4400"
"Wolverhampton City Council","http://opendatacommunities.org/id/metropolitan-district-council/wolverhampton","718894","Sam Mace","718908","150.00","Services - Professional Fees","130198956","13/12/2017","Visitor Economy","Art Galleries - Schools Art SLA Service","R4400"
"Wolverhampton City Council","http://opendatacommunities.org/id/metropolitan-district-council/wolverhampton","718956","Sandhu News","WRNEWS042","24.10","Books","130197011","06/12/2017","Strategic Organisation Development","Whitmore Reans Library","R4309"
"Wolverhampton City Council","http://opendatacommunities.org/id/metropolitan-district-council/wolverhampton","718969","Signature Luxury Cars","SLC - WCC/003","691.67","Services - Professional Fees","130198841","27/12/2017","Democratic Services","Mayoral Expenses","R4400"
"Wolverhampton City Council","http://opendatacommunities.org/id/metropolitan-district-council/wolverhampton","718981","Healthcare Matters","77162","2,354.00","Equipment - Purchase","130198842","15/12/2017","Independent Living Service","Independent Living Service","R4000"
"Wolverhampton City Council","http://opendatacommunities.org/id/metropolitan-district-council/wolverhampton","718984","Premiere Healthcare Limited","SI - 00001618","419.00","Equipment - Purchase","130195994","06/12/2017","Independent Living Service","Independent Living Service","R4000"
"Wolverhampton City Council","http://opendatacommunities.org/id/metropolitan-district-council/wolverhampton","718984","Premiere Healthcare Limited","SI - 00001618","25.00","Equipment - Purchase","130195994","06/12/2017","Independent Living Service","Independent Living Service","R4000"
"Wolverhampton City Council","http://opendatacommunities.org/id/metropolitan-district-council/wolverhampton","719012","Kirsty Webb","TFT Autumn 2017 Inst 2","880.32","Grant Payments","190404263","20/12/2017","Early Years","Early Years Entitlement Funding for Disadvantaged 2 Year Olds","R4700"
"Wolverhampton City Council","http://opendatacommunities.org/id/metropolitan-district-council/wolverhampton","719031","Broadmeadow Special School","Broadmeadow 50% Autumn Term Final","120,992.50","Grant Payments","190403034","15/12/2017","Schools","Special Schools Top Up Contingency","R4700"
"Wolverhampton City Council","http://opendatacommunities.org/id/metropolitan-district-council/wolverhampton","719031","Broadmeadow Special School","Broadmeadow 50% Spring Term Interim","103,707.50","Grant Payments","190403035","15/12/2017","Schools","Special Schools Top Up Contingency","R4700"
"Wolverhampton City Council","http://opendatacommunities.org/id/metropolitan-district-council/wolverhampton","719031","Broadmeadow Special School","Broadmeadow Autumn Term adjustments","26,354.33","Grant Payments","190403036","15/12/2017","Schools","Special Schools Top Up Contingency","R4700"
"Wolverhampton City Council","http://opendatacommunities.org/id/metropolitan-district-council/wolverhampton","719036","The Professional Darts Corp Ltd","08/12/2017 blue form","265,416.74","Services - Professional Fees","130198690","08/12/2017","Visitor Economy","Civic & Wulfrun Outhouse & Other Comercial Events","R4400"
"Wolverhampton City Council","http://opendatacommunities.org/id/metropolitan-district-council/wolverhampton","719045","Edward the Elder Primary School","T42 Autumn 17 Inst 1&2 Rising 3�s","3,615.60","Grant Payments","190404087","20/12/2017","Early Years","Early Years Entitlement Funding for Disadvantaged 2 Year Olds","R4700"
"Wolverhampton City Council","http://opendatacommunities.org/id/metropolitan-district-council/wolverhampton","719045","Edward the Elder Primary School","EYPP Autumn 2017","667.80","TPP - Private Nursery Education Funding","190404359","20/12/2017","Early Years","Early Years Pupil Premium","R5035"
"Wolverhampton City Council","http://opendatacommunities.org/id/metropolitan-district-council/wolverhampton","719056","Innovative Safety Systems","8717","285.50","Equipment - Purchase","190403345","15/12/2017","Fleet Services","Fleet Management","R4000"
"Wolverhampton City Council","http://opendatacommunities.org/id/metropolitan-district-council/wolverhampton","719056","Innovative Safety Systems","8687","146.00","Equipment - Purchase","190402040","13/12/2017","Fleet Services","Fleet Management","R4000"
"Wolverhampton City Council","http://opendatacommunities.org/id/metropolitan-district-council/wolverhampton","719067","Robert Glover","RSGWAG012","600.18","Services - Professional Fees","130197012","20/12/2017","Visitor Economy","Technical Support - ACE NPO WAG","R4400"
"Wolverhampton City Council","http://opendatacommunities.org/id/metropolitan-district-council/wolverhampton","719071","Slicker Recycling Ltd","112132","25.00","Cleaning Supplies and Materials","190403313","15/12/2017","Fleet Services","Fleet Management","R2705"
"Wolverhampton City Council","http://opendatacommunities.org/id/metropolitan-district-council/wolverhampton","719071","Slicker Recycling Ltd","112655","175.00","Cleaning Supplies and Materials","190406212","28/12/2017","Fleet Services","Fleet Management","R2705"
"Wolverhampton City Council","http://opendatacommunities.org/id/metropolitan-district-council/wolverhampton","719111","The Jane Lane School","JL60","5,769.30","TPP - Payments to Local Authorities","130200395","27/12/2017","Standards and Vulnerable Pupils","SEN Education OOC","R5100"
"Wolverhampton City Council","http://opendatacommunities.org/id/metropolitan-district-council/wolverhampton","719111","The Jane Lane School","JL60","5,769.30","TPP - Payments to Local Authorities","130200395","27/12/2017","Standards and Vulnerable Pupils","SEN Education OOC","R5100"
"Wolverhampton City Council","http://opendatacommunities.org/id/metropolitan-district-council/wolverhampton","719111","The Jane Lane School","JL58","27,936.67","TPP - Payments to Local Authorities","130199128","15/12/2017","Standards and Vulnerable Pupils","SEN Education OOC","R5100"
"Wolverhampton City Council","http://opendatacommunities.org/id/metropolitan-district-council/wolverhampton","719111","The Jane Lane School","JL58","27,936.67","TPP - Payments to Local Authorities","130199128","15/12/2017","Standards and Vulnerable Pupils","SEN Education OOC","R5100"
"Wolverhampton City Council","http://opendatacommunities.org/id/metropolitan-district-council/wolverhampton","719177","Transparent Care Limited","P160686 07011820171218","4,799.80","TPP - Residential Care - Long Term","190404254","20/12/2017","Learning Disabilities Care Purchasing","LD Care Purchasing (Spot Placements)","R5400"
"Wolverhampton City Council","http://opendatacommunities.org/id/metropolitan-district-council/wolverhampton","719177","Transparent Care Limited","P160686 07011820171218","8,599.80","TPP - Residential Care - Long Term","190404254","20/12/2017","Learning Disabilities Care Purchasing","LD Care Purchasing (Spot Placements)","R5400"
"Wolverhampton City Council","http://opendatacommunities.org/id/metropolitan-district-council/wolverhampton","719177","Transparent Care Limited","P160686 07011820171218","5,299.80","TPP - Residential Care - Long Term","190404254","20/12/2017","Learning Disabilities Care Purchasing","LD Care Purchasing (Spot Placements)","R5400"
"Wolverhampton City Council","http://opendatacommunities.org/id/metropolitan-district-council/wolverhampton","719177","Transparent Care Limited","P160686 07011820171218","5,449.80","TPP - Residential Care - Long Term","190404254","20/12/2017","Learning Disabilities Care Purchasing","LD Care Purchasing (Spot Placements)","R5400"
"Wolverhampton City Council","http://opendatacommunities.org/id/metropolitan-district-council/wolverhampton","719177","Transparent Care Limited","P160686 07011820171218","5,049.80","TPP - Residential Care - Long Term","190404254","20/12/2017","Learning Disabilities Care Purchasing","LD Care Purchasing (Spot Placements)","R5400"
"Wolverhampton City Council","http://opendatacommunities.org/id/metropolitan-district-council/wolverhampton","719178","Lorraine Waterfield","TFT Autumn 2017 Inst 2","424.44","Grant Payments","190404263","20/12/2017","Early Years","Early Years Entitlement Funding for Disadvantaged 2 Year Olds","R4700"
"Wolverhampton City Council","http://opendatacommunities.org/id/metropolitan-district-council/wolverhampton","719179","Busy Childcare LLP","Barts Busy Bees TFT Autumn 2017 Inst 2","2,418.78","Grant Payments","190404264","20/12/2017","Early Years","Early Years Entitlement Funding for Disadvantaged 2 Year Olds","R4700"
"Wolverhampton City Council","http://opendatacommunities.org/id/metropolitan-district-council/wolverhampton","719179","Busy Childcare LLP","Gatis Grasshoppers NEF Autumn 2017 INST 2","491.92","TPP - Private Nursery Education Funding","190403404","15/12/2017","Early Years","Early Years Universal Entitlement for 3 and 4 Year Olds","R5035"
"Wolverhampton City Council","http://opendatacommunities.org/id/metropolitan-district-council/wolverhampton","719179","Busy Childcare LLP","Merry Go Round TFT Autumn 2017 Inst 2","4,077.77","Grant Payments","190404268","20/12/2017","Early Years","Early Years Entitlement Funding for Disadvantaged 2 Year Olds","R4700"
"Wolverhampton City Council","http://opendatacommunities.org/id/metropolitan-district-council/wolverhampton","719179","Busy Childcare LLP","Merry Go Round NEF Autumn 2017 INST 2","8,478.80","TPP - Private Nursery Education Funding","190403403","15/12/2017","Early Years","Early Years Universal Entitlement for 3 and 4 Year Olds","R5035"
"Wolverhampton City Council","http://opendatacommunities.org/id/metropolitan-district-council/wolverhampton","719179","Busy Childcare LLP","Barts Busy Bees NEF Autumn 2017 INST 2","16,078.55","TPP - Private Nursery Education Funding","190403402","15/12/2017","Early Years","Early Years Universal Entitlement for 3 and 4 Year Olds","R5035"
"Wolverhampton City Council","http://opendatacommunities.org/id/metropolitan-district-council/wolverhampton","719179","Busy Childcare LLP","Gatis Grasshoppers TFT Autumn 2017 Inst 2","3,631.32","Grant Payments","190404265","20/12/2017","Early Years","Early Years Entitlement Funding for Disadvantaged 2 Year Olds","R4700"
"Wolverhampton City Council","http://opendatacommunities.org/id/metropolitan-district-council/wolverhampton","719202","The Bigger Picture Education Service","16077095","84.00","Services - Professional Fees","130198317","27/12/2017","Looked After Children","Pupil Premium","R4400"
"Wolverhampton City Council","http://opendatacommunities.org/id/metropolitan-district-council/wolverhampton","719202","The Bigger Picture Education Service","16077095","168.00","Services - Professional Fees","130198317","27/12/2017","Looked After Children","Pupil Premium","R4400"
"Wolverhampton City Council","http://opendatacommunities.org/id/metropolitan-district-council/wolverhampton","719202","The Bigger Picture Education Service","16076707","1,470.00","Services - Professional Fees","130197719","20/12/2017","Looked After Children","Pupil Premium","R4400"
"Wolverhampton City Council","http://opendatacommunities.org/id/metropolitan-district-council/wolverhampton","719202","The Bigger Picture Education Service","16076707","645.00","Services - Professional Fees","130197719","20/12/2017","Looked After Children","Pupil Premium","R4400"
"Wolverhampton City Council","http://opendatacommunities.org/id/metropolitan-district-council/wolverhampton","719202","The Bigger Picture Education Service","16076707","40.00","Services - Professional Fees","130197719","20/12/2017","Looked After Children","Pupil Premium","R4400"
"Wolverhampton City Council","http://opendatacommunities.org/id/metropolitan-district-council/wolverhampton","719202","The Bigger Picture Education Service","16076707","130.00","Services - Professional Fees","130197719","20/12/2017","Looked After Children","Pupil Premium","R4400"
"Wolverhampton City Council","http://opendatacommunities.org/id/metropolitan-district-council/wolverhampton","719202","The Bigger Picture Education Service","16076707","80.00","Services - Professional Fees","130197719","20/12/2017","Looked After Children","Pupil Premium","R4400"
"Wolverhampton City Council","http://opendatacommunities.org/id/metropolitan-district-council/wolverhampton","719202","The Bigger Picture Education Service","16076707","110.00","Services - Professional Fees","130197719","20/12/2017","Looked After Children","Pupil Premium","R4400"
"Wolverhampton City Council","http://opendatacommunities.org/id/metropolitan-district-council/wolverhampton","719212","Evolution Childcare @Scholars House","NEF Autumn 2017 INST 2","7,087.17","TPP - Private Nursery Education Funding","190403399","15/12/2017","Early Years","Early Years Universal Entitlement for 3 and 4 Year Olds","R5035"
"Wolverhampton City Council","http://opendatacommunities.org/id/metropolitan-district-council/wolverhampton","719212","Evolution Childcare @Scholars House","TFT Autumn 2017 Inst 2","4,244.40","Grant Payments","190404263","20/12/2017","Early Years","Early Years Entitlement Funding for Disadvantaged 2 Year Olds","R4700"
"Wolverhampton City Council","http://opendatacommunities.org/id/metropolitan-district-council/wolverhampton","719225","ocean media group","IH261287","805.50","Staff Advertising Costs","130197332","01/12/2017","Housing Revenue Account","Single non statutory homelessness","R1700"
"Wolverhampton City Council","http://opendatacommunities.org/id/metropolitan-district-council/wolverhampton","719239","Cartello Ambulance","031112","94.00","Client Transport","130198843","15/12/2017","Adults Assessment & Care Management North","Adult Services � North","R3042"
"Wolverhampton City Council","http://opendatacommunities.org/id/metropolitan-district-council/wolverhampton","719244","RISC Associates Limited","431","1,650.00","Equipment - Purchase","130194436","06/12/2017","Facilities Management","Civic Centre","R4000"
"Wolverhampton City Council","http://opendatacommunities.org/id/metropolitan-district-council/wolverhampton","719249","360Skylens Ltd","12","2,345.00","Services - Professional Fees","130195292","06/12/2017","Black Country Transport","Black Country Transport Director","R4400"
"Wolverhampton City Council","http://opendatacommunities.org/id/metropolitan-district-council/wolverhampton","719273","RCS Furnishings","15290","320.00","Furniture","130198454","08/12/2017","Housing Revenue Account","Hostels / Outreach","R4004"
"Wolverhampton City Council","http://opendatacommunities.org/id/metropolitan-district-council/wolverhampton","719273","RCS Furnishings","15290","80.00","Furniture","130198454","08/12/2017","Housing Revenue Account","Hostels / Outreach","R4004"
"Wolverhampton City Council","http://opendatacommunities.org/id/metropolitan-district-council/wolverhampton","719273","RCS Furnishings","15385","180.00","Furniture","130200762","29/12/2017","Housing Revenue Account","Hostels / Outreach","R4004"
"Wolverhampton City Council","http://opendatacommunities.org/id/metropolitan-district-council/wolverhampton","719273","RCS Furnishings","15385","55.00","Furniture","130200762","29/12/2017","Housing Revenue Account","Hostels / Outreach","R4004"
"Wolverhampton City Council","http://opendatacommunities.org/id/metropolitan-district-council/wolverhampton","719273","RCS Furnishings","15385","165.00","Furniture","130200762","29/12/2017","Housing Revenue Account","Hostels / Outreach","R4004"
"Wolverhampton City Council","http://opendatacommunities.org/id/metropolitan-district-council/wolverhampton","719273","RCS Furnishings","15385","190.00","Furniture","130200762","29/12/2017","Housing Revenue Account","Hostels / Outreach","R4004"
"Wolverhampton City Council","http://opendatacommunities.org/id/metropolitan-district-council/wolverhampton","719273","RCS Furnishings","15385","220.00","Furniture","130200762","29/12/2017","Housing Revenue Account","Hostels / Outreach","R4004"
"Wolverhampton City Council","http://opendatacommunities.org/id/metropolitan-district-council/wolverhampton","719273","RCS Furnishings","15385","30.00","Furniture","130200762","29/12/2017","Housing Revenue Account","Hostels / Outreach","R4004"
"Wolverhampton City Council","http://opendatacommunities.org/id/metropolitan-district-council/wolverhampton","719273","RCS Furnishings","15291","165.00","Furniture","130198455","08/12/2017","Housing Revenue Account","Hostels / Outreach","R4004"
"Wolverhampton City Council","http://opendatacommunities.org/id/metropolitan-district-council/wolverhampton","719273","RCS Furnishings","15291","270.00","Furniture","130198455","08/12/2017","Housing Revenue Account","Hostels / Outreach","R4004"
"Wolverhampton City Council","http://opendatacommunities.org/id/metropolitan-district-council/wolverhampton","719273","RCS Furnishings","15293","110.00","Furniture","130198457","08/12/2017","Housing Revenue Account","Hostels / Outreach","R4004"
"Wolverhampton City Council","http://opendatacommunities.org/id/metropolitan-district-council/wolverhampton","719273","RCS Furnishings","15293","55.00","Furniture","130198457","08/12/2017","Housing Revenue Account","Hostels / Outreach","R4004"
"Wolverhampton City Council","http://opendatacommunities.org/id/metropolitan-district-council/wolverhampton","719273","RCS Furnishings","15293","270.00","Furniture","130198457","08/12/2017","Housing Revenue Account","Hostels / Outreach","R4004"
"Wolverhampton City Council","http://opendatacommunities.org/id/metropolitan-district-council/wolverhampton","719273","RCS Furnishings","15293","90.00","Furniture","130198457","08/12/2017","Housing Revenue Account","Hostels / Outreach","R4004"
"Wolverhampton City Council","http://opendatacommunities.org/id/metropolitan-district-council/wolverhampton","719273","RCS Furnishings","15293","60.00","Furniture","130198457","08/12/2017","Housing Revenue Account","Hostels / Outreach","R4004"
"Wolverhampton City Council","http://opendatacommunities.org/id/metropolitan-district-council/wolverhampton","719273","RCS Furnishings","15293","350.00","Furniture","130198457","08/12/2017","Housing Revenue Account","Hostels / Outreach","R4004"
"Wolverhampton City Council","http://opendatacommunities.org/id/metropolitan-district-council/wolverhampton","719273","RCS Furnishings","15293","120.00","Furniture","130198457","08/12/2017","Housing Revenue Account","Hostels / Outreach","R4004"
"Wolverhampton City Council","http://opendatacommunities.org/id/metropolitan-district-council/wolverhampton","719273","RCS Furnishings","15292","180.00","Furniture","130198456","08/12/2017","Housing Revenue Account","Hostels / Outreach","R4004"
"Wolverhampton City Council","http://opendatacommunities.org/id/metropolitan-district-council/wolverhampton","719282","Barnborough Limited","602953","111.75","Equipment - Purchase","130195618","06/12/2017","Cleaning","Cleaning of Buildings - General","R4000"
"Wolverhampton City Council","http://opendatacommunities.org/id/metropolitan-district-council/wolverhampton","719282","Barnborough Limited","602953","127.90","Equipment - Purchase","130195618","06/12/2017","Cleaning","Cleaning of Buildings - General","R4000"
"Wolverhampton City Council","http://opendatacommunities.org/id/metropolitan-district-council/wolverhampton","719282","Barnborough Limited","602953","45.00","Equipment - Purchase","130195618","06/12/2017","Cleaning","Cleaning of Buildings - General","R4000"
"Wolverhampton City Council","http://opendatacommunities.org/id/metropolitan-district-council/wolverhampton","719282","Barnborough Limited","603167","11.50","Equipment - Purchase","130197921","27/12/2017","Cleaning","Cleaning of Buildings - General","R4000"
"Wolverhampton City Council","http://opendatacommunities.org/id/metropolitan-district-council/wolverhampton","719282","Barnborough Limited","603138","31.73","Cleaning Supplies and Materials","130197720","20/12/2017","Learning Disability Provider","Duke Street Bungalows","R2705"
"Wolverhampton City Council","http://opendatacommunities.org/id/metropolitan-district-council/wolverhampton","719282","Barnborough Limited","602954","211.25","Equipment - Purchase","130195619","06/12/2017","Cleaning","Cleaning of Buildings - General","R4000"
"Wolverhampton City Council","http://opendatacommunities.org/id/metropolitan-district-council/wolverhampton","719282","Barnborough Limited","601963","533.85","Equipment - Purchase","130197333","01/12/2017","Cleaning","Cleaning of Buildings - General","R4000"
"Wolverhampton City Council","http://opendatacommunities.org/id/metropolitan-district-council/wolverhampton","719292","Bushbury Lane Academy (Oxley Primary)","EYPP Autumn 2017","667.80","TPP - Private Nursery Education Funding","190404359","20/12/2017","Early Years","Early Years Pupil Premium","R5035"
"Wolverhampton City Council","http://opendatacommunities.org/id/metropolitan-district-council/wolverhampton","719318","Dudley & Walsall Mental Partnership Trust","0030001726","5,000.00","Grant Payments","130199129","15/12/2017","Skills","Flexible Support Fund Partnership","R4700"
"Wolverhampton City Council","http://opendatacommunities.org/id/metropolitan-district-council/wolverhampton","719319","Integra Supported Housing","126420171204","6,215.52","TPP - Supported Living","190399664","06/12/2017","Learning Disabilities Care Purchasing","LD Care Purchasing (Spot Placements)","R5422"
"Wolverhampton City Council","http://opendatacommunities.org/id/metropolitan-district-council/wolverhampton","719319","Integra Supported Housing","126320171204","6,212.00","TPP - Supported Living","190399663","06/12/2017","Learning Disabilities Care Purchasing","LD Care Purchasing (Spot Placements)","R5422"
"Wolverhampton City Council","http://opendatacommunities.org/id/metropolitan-district-council/wolverhampton","719319","Integra Supported Housing","1099-20171130","14,565.56","TPP - Supported Living","190398804","01/12/2017","Learning Disabilities Care Purchasing","LD Care Purchasing (Spot Placements)","R5422"
"Wolverhampton City Council","http://opendatacommunities.org/id/metropolitan-district-council/wolverhampton","719319","Integra Supported Housing","1099-20171130","2,601.04","TPP - Supported Living","190398804","01/12/2017","Learning Disabilities Care Purchasing","LD Care Purchasing (Spot Placements)","R5422"
"Wolverhampton City Council","http://opendatacommunities.org/id/metropolitan-district-council/wolverhampton","719326","A T Graphics","1159271","450.00","Marketing \ Non-staff advertising","130199253","27/12/2017","Markets","Wolverhampton Indoor and Open Market","R4317"
"Wolverhampton City Council","http://opendatacommunities.org/id/metropolitan-district-council/wolverhampton","719341","OS Education Ltd (Kedleston Group)","180001 - ANSSP","18,625.00","TPP - Independent Schools","130197497","08/12/2017","Standards and Vulnerable Pupils","SEN Education OOC","R5036"
"Wolverhampton City Council","http://opendatacommunities.org/id/metropolitan-district-council/wolverhampton","719368","Barbara Peace","16/10/2017","750.00","Services - Professional Fees","130193780","06/12/2017","Headstart","Headstart Phase 3","R4400"
"Wolverhampton City Council","http://opendatacommunities.org/id/metropolitan-district-council/wolverhampton","719368","Barbara Peace","10th November 2017","750.00","Services - Professional Fees","130198318","08/12/2017","Headstart","Headstart Phase 3","R4400"
"Wolverhampton City Council","http://opendatacommunities.org/id/metropolitan-district-council/wolverhampton","719380","BHR Pharmaceuticals Ltd","963299","1,020.00","Equipment - Purchase","130197168","20/12/2017","Healthier Places Service","Healthy Lifestyles Team","R4000"
"Wolverhampton City Council","http://opendatacommunities.org/id/metropolitan-district-council/wolverhampton","719380","BHR Pharmaceuticals Ltd","963299","45.00","Equipment - Purchase","130197168","20/12/2017","Healthier Places Service","Healthy Lifestyles Team","R4000"
"Wolverhampton City Council","http://opendatacommunities.org/id/metropolitan-district-council/wolverhampton","719408","Phoenix Academy","275V15","9,504.00","TPP - Alternative Provision of Education","130197335","13/12/2017","Standards and Vulnerable Pupils","SEN Education OOC","R5037"
"Wolverhampton City Council","http://opendatacommunities.org/id/metropolitan-district-council/wolverhampton","719411","Paul Lloyd","00009","450.00","Rent","130195998","08/12/2017","Child Protection","Childrens with Disabilities Team","R2200"
"Wolverhampton City Council","http://opendatacommunities.org/id/metropolitan-district-council/wolverhampton","719411","Paul Lloyd","00008","450.00","Rent","130195997","08/12/2017","Child Protection","Childrens with Disabilities Team","R2200"
"Wolverhampton City Council","http://opendatacommunities.org/id/metropolitan-district-council/wolverhampton","719413","Nadia Ayub","3","2,200.00","Services - Professional Fees","130198319","08/12/2017","Headstart","Headstart Phase 3","R4400"
"Wolverhampton City Council","http://opendatacommunities.org/id/metropolitan-district-council/wolverhampton","719420","LDH Plant Ltd","26587","148.25","Equipment - Purchase","190399018","01/12/2017","Fleet Services","Fleet Management","R4000"
"Wolverhampton City Council","http://opendatacommunities.org/id/metropolitan-district-council/wolverhampton","719430","Lisa Elkington-Bourne","CWC - 01 - 17 - 18","2,706.35","Services - Professional Fees","130198677","28/12/2017","Service Director Children & Young People","Children & Young People Support Costs","R4400"
"Wolverhampton City Council","http://opendatacommunities.org/id/metropolitan-district-council/wolverhampton","719430","Lisa Elkington-Bourne","CWC - 01 - 17 - 18","-2,706.35","Services - Professional Fees","130198677","28/12/2017","Service Director Children & Young People","Children & Young People Support Costs","R4400"
"Wolverhampton City Council","http://opendatacommunities.org/id/metropolitan-district-council/wolverhampton","719430","Lisa Elkington-Bourne","CWC - 01 - 17 - 18","2,706.35","Services - Professional Fees","130198677","28/12/2017","Service Director Children & Young People","Children & Young People Support Costs","R4400"
"Wolverhampton City Council","http://opendatacommunities.org/id/metropolitan-district-council/wolverhampton","719430","Lisa Elkington-Bourne","CWC 02-17-18","523.00","Services - Professional Fees","130198681","28/12/2017","Service Director Children & Young People","Children & Young People Support Costs","R4400"
"Wolverhampton City Council","http://opendatacommunities.org/id/metropolitan-district-council/wolverhampton","719430","Lisa Elkington-Bourne","CWC 02-17-18","-523.00","Services - Professional Fees","130198681","28/12/2017","Service Director Children & Young People","Children & Young People Support Costs","R4400"
"Wolverhampton City Council","http://opendatacommunities.org/id/metropolitan-district-council/wolverhampton","719430","Lisa Elkington-Bourne","CWC 02-17-18","523.00","Services - Professional Fees","130198681","28/12/2017","Service Director Children & Young People","Children & Young People Support Costs","R4400"
"Wolverhampton City Council","http://opendatacommunities.org/id/metropolitan-district-council/wolverhampton","719430","Lisa Elkington-Bourne","16/17/01","162.50","Services - Professional Fees","130197169","01/12/2017","Service Director Children & Young People","Children & Young People Support Costs","R4400"
"Wolverhampton City Council","http://opendatacommunities.org/id/metropolitan-district-council/wolverhampton","719430","Lisa Elkington-Bourne","16/17/01","-162.50","Services - Professional Fees","130197169","01/12/2017","Service Director Children & Young People","Children & Young People Support Costs","R4400"
"Wolverhampton City Council","http://opendatacommunities.org/id/metropolitan-district-council/wolverhampton","719430","Lisa Elkington-Bourne","16/17/01","162.50","Services - Professional Fees","130197169","01/12/2017","Service Director Children & Young People","Children & Young People Support Costs","R4400"
"Wolverhampton City Council","http://opendatacommunities.org/id/metropolitan-district-council/wolverhampton","719449","Mentoring West Midlands CIC","0494","360.00","Services - Professional Fees","130197336","20/12/2017","Early Intervention","EIP Locality 2 � Bilston/Rocket Pool","R4400"
"Wolverhampton City Council","http://opendatacommunities.org/id/metropolitan-district-council/wolverhampton","719449","Mentoring West Midlands CIC","0495","360.00","Services - Professional Fees","130198844","20/12/2017","Early Intervention","EIP Locality 1 - Eastfields","R4400"
"Wolverhampton City Council","http://opendatacommunities.org/id/metropolitan-district-council/wolverhampton","719456","National Elf Service Limited","276","1,000.00","Services - Professional Fees","130195294","06/12/2017","Headstart","Headstart Phase 3","R4400"
"Wolverhampton City Council","http://opendatacommunities.org/id/metropolitan-district-council/wolverhampton","719456","National Elf Service Limited","279","106.18","Subsistence","130197498","27/12/2017","Headstart","Headstart Phase 3","R4610"
"Wolverhampton City Council","http://opendatacommunities.org/id/metropolitan-district-council/wolverhampton","719490","Alexander Wallis","VH/CT/01","217.90","Services - Professional Fees","130198120","27/12/2017","Visitor Economy","Michael Brennand Spring Touring 2017 - NPO ACE BCG","R4400"
"Wolverhampton City Council","http://opendatacommunities.org/id/metropolitan-district-council/wolverhampton","719490","Alexander Wallis","VH/CT/01","-217.90","Services - Professional Fees","130198120","27/12/2017","Visitor Economy","Michael Brennand Spring Touring 2017 - NPO ACE BCG","R4400"
"Wolverhampton City Council","http://opendatacommunities.org/id/metropolitan-district-council/wolverhampton","719490","Alexander Wallis","VH/CT/01","107.36","Services - Professional Fees","130198120","27/12/2017","Visitor Economy","Michael Brennand Spring Touring 2017 - NPO ACE BCG","R4400"
"Wolverhampton City Council","http://opendatacommunities.org/id/metropolitan-district-council/wolverhampton","719516","Starfish Health & Wellbeing CIC","SF/WCC - 008","8,916.66","TPP - Social Care Support Services","130198320","27/12/2017","Head of Commissioning","Commissioning Mental Health","R5501"
"Wolverhampton City Council","http://opendatacommunities.org/id/metropolitan-district-council/wolverhampton","719517","Aces East Park","East Park NEF Autumn 2017 INST 2","1,295.17","TPP - Private Nursery Education Funding","190403401","15/12/2017","Early Years","Early Years Universal Entitlement for 3 and 4 Year Olds","R5035"
"Wolverhampton City Council","http://opendatacommunities.org/id/metropolitan-district-council/wolverhampton","719517","Aces East Park","TFT Autumn 2017 Inst 2","3,096.84","Grant Payments","190404263","20/12/2017","Early Years","Early Years Entitlement Funding for Disadvantaged 2 Year Olds","R4700"
"Wolverhampton City Council","http://opendatacommunities.org/id/metropolitan-district-council/wolverhampton","719517","Aces East Park","Manor NEF Autumn 2017 INST 2","5,567.50","TPP - Private Nursery Education Funding","190403400","15/12/2017","Early Years","Early Years Universal Entitlement for 3 and 4 Year Olds","R5035"
"Wolverhampton City Council","http://opendatacommunities.org/id/metropolitan-district-council/wolverhampton","719521","Moonstone Day Care Ltd","TFT Autumn 2017 Inst 2","2,059.32","Grant Payments","190404263","20/12/2017","Early Years","Early Years Entitlement Funding for Disadvantaged 2 Year Olds","R4700"
"Wolverhampton City Council","http://opendatacommunities.org/id/metropolitan-district-council/wolverhampton","719521","Moonstone Day Care Ltd","NEF Autumn 2017 INST 2","2,015.17","TPP - Private Nursery Education Funding","190403399","15/12/2017","Early Years","Early Years Universal Entitlement for 3 and 4 Year Olds","R5035"
"Wolverhampton City Council","http://opendatacommunities.org/id/metropolitan-district-council/wolverhampton","719533","Georgina Davies","TFT Autumn 2017 Inst 2","455.88","Grant Payments","190404263","20/12/2017","Early Years","Early Years Entitlement Funding for Disadvantaged 2 Year Olds","R4700"
"Wolverhampton City Council","http://opendatacommunities.org/id/metropolitan-district-council/wolverhampton","719533","Georgina Davies","NEF Autumn 2017 INST 2","2,142.00","TPP - Private Nursery Education Funding","190403399","15/12/2017","Early Years","Early Years Universal Entitlement for 3 and 4 Year Olds","R5035"
"Wolverhampton City Council","http://opendatacommunities.org/id/metropolitan-district-council/wolverhampton","719539","Aladdin�s Education Ltd","00022","500.00","Room Hire","130200763","29/12/2017","Skills","Employment Programmes","R2201"
"Wolverhampton City Council","http://opendatacommunities.org/id/metropolitan-district-council/wolverhampton","719543","ION Projects Limited","486 REV 2","98,894.00","Construction and Conversion","130197337","01/12/2017","-","Wolverhampton Interchange Block 10 Development","C1100"
"Wolverhampton City Council","http://opendatacommunities.org/id/metropolitan-district-council/wolverhampton","719543","ION Projects Limited","497","143,087.82","Construction and Conversion","130198321","06/12/2017","-","GF - Interchange - Ph2 Train Station/MSCP/Metro Extension","C1100"
"Wolverhampton City Council","http://opendatacommunities.org/id/metropolitan-district-council/wolverhampton","719552","SHAP (Sust. Housing Action Partnership)","SHAP/2017/07","1,000.00","Subscriptions","130199043","13/12/2017","Housing","Housing Regeneration - Strategy & Development","R4701"
"Wolverhampton City Council","http://opendatacommunities.org/id/metropolitan-district-council/wolverhampton","719556","Care and Independence Ltd","0000007673","323.00","Equipment - Purchase","130195999","13/12/2017","Independent Living Service","Independent Living Service","R4000"
"Wolverhampton City Council","http://opendatacommunities.org/id/metropolitan-district-council/wolverhampton","719556","Care and Independence Ltd","0000007673","12.50","Equipment - Purchase","130195999","13/12/2017","Independent Living Service","Independent Living Service","R4000"
"Wolverhampton City Council","http://opendatacommunities.org/id/metropolitan-district-council/wolverhampton","719556","Care and Independence Ltd","0000007780","2,358.05","Equipment - Purchase","130196653","13/12/2017","Independent Living Service","Independent Living Service","R4000"
"Wolverhampton City Council","http://opendatacommunities.org/id/metropolitan-district-council/wolverhampton","719559","Good Shepherd Ministry (New Contract)","0008","4,450.83","Grant Payments","190401830","13/12/2017","Housing Revenue Account","Single non statutory homelessness","R4700"
"Wolverhampton City Council","http://opendatacommunities.org/id/metropolitan-district-council/wolverhampton","719562","Ashcroft Hollow Nursing Home","P160587 07011820171218","2,389.28","TPP - Nursing Care - Long Term","190404255","20/12/2017","Older People Care Purchasing","OP Care Purchasing (Spot Placements)","R5410"
"Wolverhampton City Council","http://opendatacommunities.org/id/metropolitan-district-council/wolverhampton","719565","Stourbridge Paving Company Limited","7293","6,523.19","Construction and Conversion","130197170","20/12/2017","-","Network Development - Safer Routes to School","C1100"
"Wolverhampton City Council","http://opendatacommunities.org/id/metropolitan-district-council/wolverhampton","719565","Stourbridge Paving Company Limited","7300","20,451.48","Construction and Conversion","130197922","27/12/2017","-","Bilston Urban Village","C1100"
"Wolverhampton City Council","http://opendatacommunities.org/id/metropolitan-district-council/wolverhampton","719570","Grayson Design & Print Ltd","33632","76.00","Printing","130196190","13/12/2017","ICTS","Document Centre - General","R4300"
"Wolverhampton City Council","http://opendatacommunities.org/id/metropolitan-district-council/wolverhampton","719570","Grayson Design & Print Ltd","33775","152.00","Printing","130197499","20/12/2017","ICTS","Document Centre - General","R4300"
"Wolverhampton City Council","http://opendatacommunities.org/id/metropolitan-district-council/wolverhampton","719570","Grayson Design & Print Ltd","33633","104.55","Printing","130196191","13/12/2017","ICTS","Document Centre - General","R4300"
"Wolverhampton City Council","http://opendatacommunities.org/id/metropolitan-district-council/wolverhampton","719570","Grayson Design & Print Ltd","33874","76.00","Printing","130198958","20/12/2017","ICTS","Document Centre - General","R4300"
"Wolverhampton City Council","http://opendatacommunities.org/id/metropolitan-district-council/wolverhampton","719582","Accord Childcare","December 2017 - 72AAF","250.94","TPP - Child Care provided for client","130199130","20/12/2017","Adult Education","24+ Advanced Learning Loan","R5034"
"Wolverhampton City Council","http://opendatacommunities.org/id/metropolitan-district-council/wolverhampton","719586","Bonasystems Europe Ltd","10839","3,060.00","Cleaning Supplies and Materials","130197923","06/12/2017","Leisure Services","Bert Williams Leisure Centre","R2705"
"Wolverhampton City Council","http://opendatacommunities.org/id/metropolitan-district-council/wolverhampton","719592","Bilston People�s Centre","2017/51","120.25","Room Hire","130197721","27/12/2017","Central Corporate Budgets","Corporate Events","R2201"
"Wolverhampton City Council","http://opendatacommunities.org/id/metropolitan-district-council/wolverhampton","719599","HCSS Education(Access Uk)","512323","1,015.00","Stationery","130197364","01/12/2017","Schools","D�Eyncourt Primary School","R4308"
"Wolverhampton City Council","http://opendatacommunities.org/id/metropolitan-district-council/wolverhampton","719605","Alyson Sayers Safeguarding Ltd","AS130","700.00","Training Expenses","130196328","06/12/2017","Early Years","Early Years & Universal Service","R1650"
"Wolverhampton City Council","http://opendatacommunities.org/id/metropolitan-district-council/wolverhampton","719668","St Stephens C Of E Primary","EYPP Autumn 2017","1,001.70","TPP - Private Nursery Education Funding","190404359","20/12/2017","Early Years","Early Years Pupil Premium","R5035"
"Wolverhampton City Council","http://opendatacommunities.org/id/metropolitan-district-council/wolverhampton","719673","Cadence Management Services Limited","1206159","1,850.00","Services - Professional Fees","130197501","27/12/2017","City Development","Junction 2 Development","R4400"
"Wolverhampton City Council","http://opendatacommunities.org/id/metropolitan-district-council/wolverhampton","719673","Cadence Management Services Limited","1206158","1,750.00","Services - Professional Fees","130197500","27/12/2017","City Development","Junction 2 Development","R4400"
"Wolverhampton City Council","http://opendatacommunities.org/id/metropolitan-district-council/wolverhampton","719678","Pasta King (UK) Ltd","408883","712.80","Provisions (Resale)","130194773","06/12/2017","Catering","Education Catering - General Overheads","R4102"
"Wolverhampton City Council","http://opendatacommunities.org/id/metropolitan-district-council/wolverhampton","719678","Pasta King (UK) Ltd","408883","-712.80","Provisions (Resale)","130194773","06/12/2017","Catering","Education Catering - General Overheads","R4102"
"Wolverhampton City Council","http://opendatacommunities.org/id/metropolitan-district-council/wolverhampton","719678","Pasta King (UK) Ltd","408883","712.80","Provisions (Resale)","130194773","06/12/2017","Catering","Education Catering - General Overheads","R4102"
"Wolverhampton City Council","http://opendatacommunities.org/id/metropolitan-district-council/wolverhampton","719678","Pasta King (UK) Ltd","409845","950.40","Provisions (Resale)","130195807","20/12/2017","Catering","Education Catering - General Overheads","R4102"
"Wolverhampton City Council","http://opendatacommunities.org/id/metropolitan-district-council/wolverhampton","719678","Pasta King (UK) Ltd","409845","-950.40","Provisions (Resale)","130195807","20/12/2017","Catering","Education Catering - General Overheads","R4102"
"Wolverhampton City Council","http://opendatacommunities.org/id/metropolitan-district-council/wolverhampton","719678","Pasta King (UK) Ltd","409845","950.40","Provisions (Resale)","130195807","20/12/2017","Catering","Education Catering - General Overheads","R4102"
"Wolverhampton City Council","http://opendatacommunities.org/id/metropolitan-district-council/wolverhampton","719678","Pasta King (UK) Ltd","409655","237.60","Provisions (Resale)","130195805","13/12/2017","Catering","Education Catering - General Overheads","R4102"
"Wolverhampton City Council","http://opendatacommunities.org/id/metropolitan-district-council/wolverhampton","719678","Pasta King (UK) Ltd","409655","-237.60","Provisions (Resale)","130195805","13/12/2017","Catering","Education Catering - General Overheads","R4102"
"Wolverhampton City Council","http://opendatacommunities.org/id/metropolitan-district-council/wolverhampton","719678","Pasta King (UK) Ltd","409655","237.60","Provisions (Resale)","130195805","13/12/2017","Catering","Education Catering - General Overheads","R4102"
"Wolverhampton City Council","http://opendatacommunities.org/id/metropolitan-district-council/wolverhampton","719678","Pasta King (UK) Ltd","409746","110.00","Provisions (Resale)","130196329","20/12/2017","Catering","Education Catering - General Overheads","R4102"
"Wolverhampton City Council","http://opendatacommunities.org/id/metropolitan-district-council/wolverhampton","719678","Pasta King (UK) Ltd","408876","273.20","Provisions (Resale)","130194771","06/12/2017","Catering","Education Catering - General Overheads","R4102"
"Wolverhampton City Council","http://opendatacommunities.org/id/metropolitan-district-council/wolverhampton","719678","Pasta King (UK) Ltd","408876","-273.20","Provisions (Resale)","130194771","06/12/2017","Catering","Education Catering - General Overheads","R4102"
"Wolverhampton City Council","http://opendatacommunities.org/id/metropolitan-district-council/wolverhampton","719678","Pasta King (UK) Ltd","408876","273.20","Provisions (Resale)","130194771","06/12/2017","Catering","Education Catering - General Overheads","R4102"
"Wolverhampton City Council","http://opendatacommunities.org/id/metropolitan-district-council/wolverhampton","719678","Pasta King (UK) Ltd","408882","237.60","Provisions (Resale)","130194772","06/12/2017","Catering","Education Catering - General Overheads","R4102"
"Wolverhampton City Council","http://opendatacommunities.org/id/metropolitan-district-council/wolverhampton","719678","Pasta King (UK) Ltd","408882","-237.60","Provisions (Resale)","130194772","06/12/2017","Catering","Education Catering - General Overheads","R4102"
"Wolverhampton City Council","http://opendatacommunities.org/id/metropolitan-district-council/wolverhampton","719678","Pasta King (UK) Ltd","408882","237.60","Provisions (Resale)","130194772","06/12/2017","Catering","Education Catering - General Overheads","R4102"
"Wolverhampton City Council","http://opendatacommunities.org/id/metropolitan-district-council/wolverhampton","719678","Pasta King (UK) Ltd","410637","356.40","Provisions (Resale)","130196862","20/12/2017","Catering","Education Catering - General Overheads","R4102"
"Wolverhampton City Council","http://opendatacommunities.org/id/metropolitan-district-council/wolverhampton","719678","Pasta King (UK) Ltd","410637","-356.40","Provisions (Resale)","130196862","20/12/2017","Catering","Education Catering - General Overheads","R4102"
"Wolverhampton City Council","http://opendatacommunities.org/id/metropolitan-district-council/wolverhampton","719678","Pasta King (UK) Ltd","410637","356.40","Provisions (Resale)","130196862","20/12/2017","Catering","Education Catering - General Overheads","R4102"
"Wolverhampton City Council","http://opendatacommunities.org/id/metropolitan-district-council/wolverhampton","719678","Pasta King (UK) Ltd","409660","-308.80","Provisions (Resale)","130195806","13/12/2017","Catering","Education Catering - General Overheads","R4102"
"Wolverhampton City Council","http://opendatacommunities.org/id/metropolitan-district-council/wolverhampton","719678","Pasta King (UK) Ltd","409660","308.80","Provisions (Resale)","130195806","13/12/2017","Catering","Education Catering - General Overheads","R4102"
"Wolverhampton City Council","http://opendatacommunities.org/id/metropolitan-district-council/wolverhampton","719678","Pasta King (UK) Ltd","409660","308.80","Provisions (Resale)","130195806","13/12/2017","Catering","Education Catering - General Overheads","R4102"
"Wolverhampton City Council","http://opendatacommunities.org/id/metropolitan-district-council/wolverhampton","719678","Pasta King (UK) Ltd","410604","792.00","Provisions (Resale)","130196861","20/12/2017","Catering","Education Catering - General Overheads","R4102"
"Wolverhampton City Council","http://opendatacommunities.org/id/metropolitan-district-council/wolverhampton","719678","Pasta King (UK) Ltd","410604","-792.00","Provisions (Resale)","130196861","20/12/2017","Catering","Education Catering - General Overheads","R4102"
"Wolverhampton City Council","http://opendatacommunities.org/id/metropolitan-district-council/wolverhampton","719678","Pasta King (UK) Ltd","410604","792.00","Provisions (Resale)","130196861","20/12/2017","Catering","Education Catering - General Overheads","R4102"
"Wolverhampton City Council","http://opendatacommunities.org/id/metropolitan-district-council/wolverhampton","719701","Wolverhampton Citizens 4 Change","221117","500.00","Grant Payments","130197013","20/12/2017","Community Safety","SWP - Gangs","R4700"
"Wolverhampton City Council","http://opendatacommunities.org/id/metropolitan-district-council/wolverhampton","719713","GME Springs Coventry Ltd","INV06595","157.00","Equipment - Purchase","190406251","28/12/2017","Fleet Services","Fleet Management","R4000"
"Wolverhampton City Council","http://opendatacommunities.org/id/metropolitan-district-council/wolverhampton","719713","GME Springs Coventry Ltd","INV06595","20.00","Equipment - Purchase","190406251","28/12/2017","Fleet Services","Fleet Management","R4000"
"Wolverhampton City Council","http://opendatacommunities.org/id/metropolitan-district-council/wolverhampton","719718","James Button & Co Solicitors","T2017/48","-1,002.18","Training Expenses","130198683","20/12/2017","Licensing","Licensing - Private Hire Vehicles","R1650"
"Wolverhampton City Council","http://opendatacommunities.org/id/metropolitan-district-council/wolverhampton","719718","James Button & Co Solicitors","T2017/48","1,002.18","Training Expenses","130198683","20/12/2017","Licensing","Licensing - Private Hire Vehicles","R1650"
"Wolverhampton City Council","http://opendatacommunities.org/id/metropolitan-district-council/wolverhampton","719718","James Button & Co Solicitors","T2017/48","1,002.18","Training Expenses","130198683","20/12/2017","Licensing","Licensing - Private Hire Vehicles","R1650"
"Wolverhampton City Council","http://opendatacommunities.org/id/metropolitan-district-council/wolverhampton","719754","Fichtner Consulting Engineers Limited","0000029075","5,333.00","Services - Consultants","130195071","01/12/2017","Waste and Recycling Service","Waste Disposal - General","R4404"
"Wolverhampton City Council","http://opendatacommunities.org/id/metropolitan-district-council/wolverhampton","719755","Goodchilds Estate Agents (W�ton) Ltd","INVOICE 1","395.00","Accommodation Costs","130195427","06/12/2017","Child Protection","CIN/CP Social Work Unit - Area 6","R4900"
"Wolverhampton City Council","http://opendatacommunities.org/id/metropolitan-district-council/wolverhampton","719758","Ellingham School (East Anglia) Priory","D730000152","2,975.00","TPP - Alternative Provision of Education","130197924","06/12/2017","Standards and Vulnerable Pupils","SEN Education OOC","R5037"
"Wolverhampton City Council","http://opendatacommunities.org/id/metropolitan-district-council/wolverhampton","719758","Ellingham School (East Anglia) Priory","D730000169","3,850.00","TPP - Alternative Provision of Education","130200399","27/12/2017","Standards and Vulnerable Pupils","SEN Education OOC","R5037"
"Wolverhampton City Council","http://opendatacommunities.org/id/metropolitan-district-council/wolverhampton","719765","Sherbrook Primary School","P16107620171219","600.00","Grant Payments to Individuals","190404704","20/12/2017","Looked After Children","LAC Education Team (LACE)","R6402"
"Wolverhampton City Council","http://opendatacommunities.org/id/metropolitan-district-council/wolverhampton","719774","We Buy Properties Fast","002","975.00","No Recourse to Public Funds","130198325","21/12/2017","Child Protection","CIN/CP Social Work Unit - Area 4","R6314"
"Wolverhampton City Council","http://opendatacommunities.org/id/metropolitan-district-council/wolverhampton","719777","Spaldings Limited","SI-2248340","4.93","Equipment - Purchase","190400787","08/12/2017","Fleet Services","Fleet Management","R4000"
"Wolverhampton City Council","http://opendatacommunities.org/id/metropolitan-district-council/wolverhampton","719777","Spaldings Limited","SI-2248340","11.93","Equipment - Purchase","190400787","08/12/2017","Fleet Services","Fleet Management","R4000"
"Wolverhampton City Council","http://opendatacommunities.org/id/metropolitan-district-council/wolverhampton","719777","Spaldings Limited","SI-2246361","25.90","Equipment - Purchase","190399092","01/12/2017","Fleet Services","Fleet Management","R4000"
"Wolverhampton City Council","http://opendatacommunities.org/id/metropolitan-district-council/wolverhampton","719777","Spaldings Limited","SI-2245429","25.90","Equipment - Purchase","190399091","01/12/2017","Fleet Services","Fleet Management","R4000"
"Wolverhampton City Council","http://opendatacommunities.org/id/metropolitan-district-council/wolverhampton","719777","Spaldings Limited","SI-2248339","11.93","Equipment - Purchase","190400786","08/12/2017","Fleet Services","Fleet Management","R4000"
"Wolverhampton City Council","http://opendatacommunities.org/id/metropolitan-district-council/wolverhampton","719777","Spaldings Limited","SI-2248339","4.93","Equipment - Purchase","190400786","08/12/2017","Fleet Services","Fleet Management","R4000"
"Wolverhampton City Council","http://opendatacommunities.org/id/metropolitan-district-council/wolverhampton","719777","Spaldings Limited","SI-2248342","11.93","Equipment - Purchase","190400789","08/12/2017","Fleet Services","Fleet Management","R4000"
"Wolverhampton City Council","http://opendatacommunities.org/id/metropolitan-district-council/wolverhampton","719777","Spaldings Limited","SI-2248342","4.93","Equipment - Purchase","190400789","08/12/2017","Fleet Services","Fleet Management","R4000"
"Wolverhampton City Council","http://opendatacommunities.org/id/metropolitan-district-council/wolverhampton","719777","Spaldings Limited","SI-2248342","23.37","Equipment - Purchase","190400789","08/12/2017","Fleet Services","Fleet Management","R4000"
"Wolverhampton City Council","http://opendatacommunities.org/id/metropolitan-district-council/wolverhampton","719777","Spaldings Limited","SI-2248341","4.93","Equipment - Purchase","190400788","08/12/2017","Fleet Services","Fleet Management","R4000"
"Wolverhampton City Council","http://opendatacommunities.org/id/metropolitan-district-council/wolverhampton","719777","Spaldings Limited","SI-2248341","11.93","Equipment - Purchase","190400788","08/12/2017","Fleet Services","Fleet Management","R4000"
"Wolverhampton City Council","http://opendatacommunities.org/id/metropolitan-district-council/wolverhampton","719789","Etc Design Ltd.","3534","1,300.00","Services - Professional Fees","130199254","27/12/2017","Planning","Planning","R4400"
"Wolverhampton City Council","http://opendatacommunities.org/id/metropolitan-district-council/wolverhampton","719816","West Mid. Quaker Peace Education Project","146176","950.00","Services - Professional Fees","130195809","08/12/2017","Headstart","Headstart Phase 3","R4400"
"Wolverhampton City Council","http://opendatacommunities.org/id/metropolitan-district-council/wolverhampton","719817","PE Vantech","4906","32.00","Services - Professional Fees","190403338","15/12/2017","Fleet Services","Fleet Management","R4400"
"Wolverhampton City Council","http://opendatacommunities.org/id/metropolitan-district-council/wolverhampton","719817","PE Vantech","4906","440.00","Services - Professional Fees","190403338","15/12/2017","Fleet Services","Fleet Management","R4400"
"Wolverhampton City Council","http://opendatacommunities.org/id/metropolitan-district-council/wolverhampton","719817","PE Vantech","4906","440.00","Services - Professional Fees","190403338","15/12/2017","Fleet Services","Fleet Management","R4400"
"Wolverhampton City Council","http://opendatacommunities.org/id/metropolitan-district-council/wolverhampton","719819","LearnPlay Foundation","1559","799.00","Training Expenses","130200406","27/12/2017","Skills","IMPACT","R1650"
"Wolverhampton City Council","http://opendatacommunities.org/id/metropolitan-district-council/wolverhampton","719819","LearnPlay Foundation","01557","799.00","Training Expenses","130200404","27/12/2017","Skills","IMPACT","R1650"
"Wolverhampton City Council","http://opendatacommunities.org/id/metropolitan-district-council/wolverhampton","719819","LearnPlay Foundation","01548","730.75","Training Expenses","130200402","27/12/2017","Skills","IMPACT","R1650"
"Wolverhampton City Council","http://opendatacommunities.org/id/metropolitan-district-council/wolverhampton","719836","British Records Association","002409","6.00","Comms - Postage","130199106","15/12/2017","Visitor Economy","Archives","R4503"
"Wolverhampton City Council","http://opendatacommunities.org/id/metropolitan-district-council/wolverhampton","719842","Due North Ltd","DNO NSC2300730","-172.10","Training Expenses","130195428","13/12/2017","Commercial Services","Corporate Procurement Unit","R1650"
"Wolverhampton City Council","http://opendatacommunities.org/id/metropolitan-district-council/wolverhampton","719842","Due North Ltd","?NO NSI2300734","270.53","Training Expenses","130196195","13/12/2017","Commercial Services","Corporate Procurement Unit","R1650"
"Wolverhampton City Council","http://opendatacommunities.org/id/metropolitan-district-council/wolverhampton","719860","The Oxygen Agency Ltd","3331","6,000.00","Computing - Internet","130198326","27/12/2017","Headstart","Headstart - Learning Technologies Team","R4537"
"Wolverhampton City Council","http://opendatacommunities.org/id/metropolitan-district-council/wolverhampton","719905","Belvedere Safety Consultancy Ltd","10","160.00","Training Expenses","130200411","27/12/2017","Human Resources","Centralised Training","R1650"
"Wolverhampton City Council","http://opendatacommunities.org/id/metropolitan-district-council/wolverhampton","719946","Secondnature International Ltd","0109","2,749.73","Training Expenses","130197173","20/12/2017","Human Resources","Centralised Training","R1650"
"Wolverhampton City Council","http://opendatacommunities.org/id/metropolitan-district-council/wolverhampton","719947","Street Eats Food","145482","152.24","Provisions (Resale)","130197504","20/12/2017","Catering","Meals on Wheels","R4102"
"Wolverhampton City Council","http://opendatacommunities.org/id/metropolitan-district-council/wolverhampton","719947","Street Eats Food","149364","159.83","Provisions (Resale)","130197514","21/12/2017","Leisure Services","Bert Williams Leisure Centre Caf�","R4102"
"Wolverhampton City Council","http://opendatacommunities.org/id/metropolitan-district-council/wolverhampton","719947","Street Eats Food","149278","576.91","Provisions (Resale)","130197509","21/12/2017","Catering","Education Catering - General Overheads","R4102"
"Wolverhampton City Council","http://opendatacommunities.org/id/metropolitan-district-council/wolverhampton","719947","Street Eats Food","149105","93.35","Provisions (Resale)","130197505","21/12/2017","Leisure Services","WV Active Catering","R4102"
"Wolverhampton City Council","http://opendatacommunities.org/id/metropolitan-district-council/wolverhampton","719947","Street Eats Food","147092","76.57","Provisions (Resale)","130196196","08/12/2017","Leisure Services","WV Active Catering - Central","R4102"
"Wolverhampton City Council","http://opendatacommunities.org/id/metropolitan-district-council/wolverhampton","719947","Street Eats Food","147045","282.30","Provisions (Resale)","130195811","08/12/2017","Leisure Services","WV Active Catering","R4102"
"Wolverhampton City Council","http://opendatacommunities.org/id/metropolitan-district-council/wolverhampton","719947","Street Eats Food","148295","525.99","Provisions (Resale)","130196656","15/12/2017","Catering","Education Catering - General Overheads","R4102"
"Wolverhampton City Council","http://opendatacommunities.org/id/metropolitan-district-council/wolverhampton","719947","Street Eats Food","148445","815.48","Provisions (Resale)","130196659","15/12/2017","Catering","Civic Centre Catering","R4102"
"Wolverhampton City Council","http://opendatacommunities.org/id/metropolitan-district-council/wolverhampton","719947","Street Eats Food","149975","131.34","Provisions (Resale)","130198458","28/12/2017","Leisure Services","WV Active Catering - Central","R4102"
"Wolverhampton City Council","http://opendatacommunities.org/id/metropolitan-district-council/wolverhampton","719947","Street Eats Food","150191","95.81","Provisions (Resale)","130198332","28/12/2017","Catering","Civic Centre Catering","R4102"
"Wolverhampton City Council","http://opendatacommunities.org/id/metropolitan-district-council/wolverhampton","719947","Street Eats Food","135309","66.35","Provisions (Resale)","130197339","01/12/2017","Catering","Civic Centre Catering","R4102"
"Wolverhampton City Council","http://opendatacommunities.org/id/metropolitan-district-council/wolverhampton","719947","Street Eats Food","135148","160.85","Provisions (Resale)","130197338","01/12/2017","Catering","Education Catering - General Overheads","R4102"
"Wolverhampton City Council","http://opendatacommunities.org/id/metropolitan-district-council/wolverhampton","719947","Street Eats Food","137899","173.23","Provisions (Resale)","130197347","01/12/2017","Catering","Meals on Wheels","R4102"
"Wolverhampton City Council","http://opendatacommunities.org/id/metropolitan-district-council/wolverhampton","719947","Street Eats Food","138576","612.71","Provisions (Resale)","130197348","01/12/2017","Catering","Civic Centre Catering","R4102"
"Wolverhampton City Council","http://opendatacommunities.org/id/metropolitan-district-council/wolverhampton","719947","Street Eats Food","145481","149.84","Provisions (Resale)","130197503","01/12/2017","Catering","Meals on Wheels","R4102"
"Wolverhampton City Council","http://opendatacommunities.org/id/metropolitan-district-council/wolverhampton","719947","Street Eats Food","136042","340.18","Provisions (Resale)","130197925","20/12/2017","Catering","Civic Centre Catering","R4102"
"Wolverhampton City Council","http://opendatacommunities.org/id/metropolitan-district-council/wolverhampton","719947","Street Eats Food","148448","167.87","Provisions (Resale)","130196662","20/12/2017","Catering","Meals on Wheels","R4102"
"Wolverhampton City Council","http://opendatacommunities.org/id/metropolitan-district-council/wolverhampton","719947","Street Eats Food","149261","926.11","Provisions (Resale)","130197508","21/12/2017","Catering","Education Catering - General Overheads","R4102"
"Wolverhampton City Council","http://opendatacommunities.org/id/metropolitan-district-council/wolverhampton","719947","Street Eats Food","149362","177.26","Provisions (Resale)","130197512","21/12/2017","Catering","Meals on Wheels","R4102"
"Wolverhampton City Council","http://opendatacommunities.org/id/metropolitan-district-council/wolverhampton","719947","Street Eats Food","147091","61.04","Provisions (Resale)","130195812","08/12/2017","Leisure Services","WV Active Catering - Central","R4102"
"Wolverhampton City Council","http://opendatacommunities.org/id/metropolitan-district-council/wolverhampton","719947","Street Eats Food","147159","525.99","Provisions (Resale)","130195813","08/12/2017","Catering","Education Catering - General Overheads","R4102"
"Wolverhampton City Council","http://opendatacommunities.org/id/metropolitan-district-council/wolverhampton","719947","Street Eats Food","148449","198.12","Provisions (Resale)","130196663","15/12/2017","Leisure Services","Bert Williams Leisure Centre Caf�","R4102"
"Wolverhampton City Council","http://opendatacommunities.org/id/metropolitan-district-council/wolverhampton","719947","Street Eats Food","148348","886.92","Provisions (Resale)","130196657","15/12/2017","Catering","Education Catering - General Overheads","R4102"
"Wolverhampton City Council","http://opendatacommunities.org/id/metropolitan-district-council/wolverhampton","719947","Street Eats Food","146513","79.89","Provisions (Resale)","130195074","01/12/2017","Leisure Services","WV Active Catering","R4102"
"Wolverhampton City Council","http://opendatacommunities.org/id/metropolitan-district-council/wolverhampton","719947","Street Eats Food","146768","147.76","Provisions (Resale)","130195081","01/12/2017","Catering","Meals on Wheels","R4102"
"Wolverhampton City Council","http://opendatacommunities.org/id/metropolitan-district-council/wolverhampton","719947","Street Eats Food","137538","686.37","Provisions (Resale)","130197344","01/12/2017","Catering","Civic Centre Catering","R4102"
"Wolverhampton City Council","http://opendatacommunities.org/id/metropolitan-district-council/wolverhampton","719947","Street Eats Food","146770","162.13","Provisions (Resale)","130195083","01/12/2017","Leisure Services","Bert Williams Leisure Centre Caf�","R4102"
"Wolverhampton City Council","http://opendatacommunities.org/id/metropolitan-district-council/wolverhampton","719947","Street Eats Food","150936","48.19","Provisions (Resale)","130198336","28/12/2017","Catering","Meals on Wheels","R4102"
"Wolverhampton City Council","http://opendatacommunities.org/id/metropolitan-district-council/wolverhampton","719947","Street Eats Food","150190","836.20","Provisions (Resale)","130198331","28/12/2017","Catering","Civic Centre Catering","R4102"
"Wolverhampton City Council","http://opendatacommunities.org/id/metropolitan-district-council/wolverhampton","719947","Street Eats Food","148230","145.39","Provisions (Resale)","130196655","15/12/2017","Leisure Services","WV Active Catering - Central","R4102"
"Wolverhampton City Council","http://opendatacommunities.org/id/metropolitan-district-council/wolverhampton","719947","Street Eats Food","148183","335.03","Provisions (Resale)","130196654","15/12/2017","Leisure Services","WV Active Catering","R4102"
"Wolverhampton City Council","http://opendatacommunities.org/id/metropolitan-district-council/wolverhampton","719947","Street Eats Food","150194","186.17","Provisions (Resale)","130198335","28/12/2017","Leisure Services","Bert Williams Leisure Centre Caf�","R4102"
"Wolverhampton City Council","http://opendatacommunities.org/id/metropolitan-district-council/wolverhampton","719947","Street Eats Food","150090","878.57","Provisions (Resale)","130198330","28/12/2017","Catering","Education Catering - General Overheads","R4102"
"Wolverhampton City Council","http://opendatacommunities.org/id/metropolitan-district-council/wolverhampton","719947","Street Eats Food","146766","726.63","Provisions (Resale)","130195079","01/12/2017","Catering","Civic Centre Catering","R4102"
"Wolverhampton City Council","http://opendatacommunities.org/id/metropolitan-district-council/wolverhampton","719947","Street Eats Food","138577","158.37","Provisions (Resale)","130197349","01/12/2017","Catering","Meals on Wheels","R4102"
"Wolverhampton City Council","http://opendatacommunities.org/id/metropolitan-district-council/wolverhampton","719947","Street Eats Food","145479","773.63","Provisions (Resale)","130197502","01/12/2017","Catering","Civic Centre Catering","R4102"
"Wolverhampton City Council","http://opendatacommunities.org/id/metropolitan-district-council/wolverhampton","719947","Street Eats Food","146562","61.04","Provisions (Resale)","130195075","01/12/2017","Leisure Services","WV Active Catering - Central","R4102"
"Wolverhampton City Council","http://opendatacommunities.org/id/metropolitan-district-council/wolverhampton","719947","Street Eats Food","146623","525.99","Provisions (Resale)","130195076","01/12/2017","Catering","Education Catering - General Overheads","R4102"
"Wolverhampton City Council","http://opendatacommunities.org/id/metropolitan-district-council/wolverhampton","719947","Street Eats Food","148447","166.32","Provisions (Resale)","130196661","20/12/2017","Catering","Meals on Wheels","R4102"
"Wolverhampton City Council","http://opendatacommunities.org/id/metropolitan-district-council/wolverhampton","719947","Street Eats Food","146769","216.25","Provisions (Resale)","130195082","20/12/2017","Catering","Meals on Wheels","R4102"
"Wolverhampton City Council","http://opendatacommunities.org/id/metropolitan-district-council/wolverhampton","719947","Street Eats Food","145204","102.62","Provisions (Resale)","130196863","06/12/2017","Leisure Services","WV Active Catering","R4102"
"Wolverhampton City Council","http://opendatacommunities.org/id/metropolitan-district-council/wolverhampton","719947","Street Eats Food","149209","525.99","Provisions (Resale)","130197507","21/12/2017","Catering","Education Catering - General Overheads","R4102"
"Wolverhampton City Council","http://opendatacommunities.org/id/metropolitan-district-council/wolverhampton","719947","Street Eats Food","149361","87.68","Provisions (Resale)","130197511","21/12/2017","Catering","Civic Centre Catering","R4102"
"Wolverhampton City Council","http://opendatacommunities.org/id/metropolitan-district-council/wolverhampton","719947","Street Eats Food","147312","152.36","Provisions (Resale)","130195818","08/12/2017","Catering","Meals on Wheels","R4102"
"Wolverhampton City Council","http://opendatacommunities.org/id/metropolitan-district-council/wolverhampton","719947","Street Eats Food","147311","45.70","Provisions (Resale)","130195817","08/12/2017","Catering","Civic Centre Catering","R4102"
"Wolverhampton City Council","http://opendatacommunities.org/id/metropolitan-district-council/wolverhampton","719947","Street Eats Food","147213","896.46","Provisions (Resale)","130195814","08/12/2017","Catering","Education Catering - General Overheads","R4102"
"Wolverhampton City Council","http://opendatacommunities.org/id/metropolitan-district-council/wolverhampton","719947","Street Eats Food","148365","576.91","Provisions (Resale)","130196658","15/12/2017","Catering","Education Catering - General Overheads","R4102"
"Wolverhampton City Council","http://opendatacommunities.org/id/metropolitan-district-council/wolverhampton","719947","Street Eats Food","148446","62.63","Provisions (Resale)","130196660","15/12/2017","Catering","Civic Centre Catering","R4102"
"Wolverhampton City Council","http://opendatacommunities.org/id/metropolitan-district-council/wolverhampton","719947","Street Eats Food","146677","855.76","Provisions (Resale)","130195077","01/12/2017","Catering","Education Catering - General Overheads","R4102"
"Wolverhampton City Council","http://opendatacommunities.org/id/metropolitan-district-council/wolverhampton","719947","Street Eats Food","146692","567.88","Provisions (Resale)","130195078","01/12/2017","Catering","Education Catering - General Overheads","R4102"
"Wolverhampton City Council","http://opendatacommunities.org/id/metropolitan-district-council/wolverhampton","719947","Street Eats Food","137101","16.01","Provisions (Resale)","130197342","01/12/2017","Catering","Civic Centre Catering","R4102"
"Wolverhampton City Council","http://opendatacommunities.org/id/metropolitan-district-council/wolverhampton","719947","Street Eats Food","136586","163.70","Provisions (Resale)","130197341","01/12/2017","Catering","Meals on Wheels","R4102"
"Wolverhampton City Council","http://opendatacommunities.org/id/metropolitan-district-council/wolverhampton","719947","Street Eats Food","146767","68.90","Provisions (Resale)","130195080","01/12/2017","Catering","Civic Centre Catering","R4102"
"Wolverhampton City Council","http://opendatacommunities.org/id/metropolitan-district-council/wolverhampton","719947","Street Eats Food","150192","130.30","Provisions (Resale)","130198333","28/12/2017","Catering","Meals on Wheels","R4102"
"Wolverhampton City Council","http://opendatacommunities.org/id/metropolitan-district-council/wolverhampton","719947","Street Eats Food","150107","576.91","Provisions (Resale)","130198328","28/12/2017","Catering","Education Catering - General Overheads","R4102"
"Wolverhampton City Council","http://opendatacommunities.org/id/metropolitan-district-council/wolverhampton","719947","Street Eats Food","137540","187.38","Provisions (Resale)","130197345","20/12/2017","Catering","Meals on Wheels","R4102"
"Wolverhampton City Council","http://opendatacommunities.org/id/metropolitan-district-council/wolverhampton","719947","Street Eats Food","137898","54.25","Provisions (Resale)","130199097","20/12/2017","Catering","Civic Centre Catering","R4102"
"Wolverhampton City Council","http://opendatacommunities.org/id/metropolitan-district-council/wolverhampton","719947","Street Eats Food","147310","1,130.68","Provisions (Resale)","130195816","08/12/2017","Catering","Civic Centre Catering","R4102"
"Wolverhampton City Council","http://opendatacommunities.org/id/metropolitan-district-council/wolverhampton","719947","Street Eats Food","147314","162.13","Provisions (Resale)","130195820","08/12/2017","Leisure Services","Bert Williams Leisure Centre Caf�","R4102"
"Wolverhampton City Council","http://opendatacommunities.org/id/metropolitan-district-council/wolverhampton","719947","Street Eats Food","147229","598.77","Provisions (Resale)","130195815","08/12/2017","Catering","Education Catering - General Overheads","R4102"
"Wolverhampton City Council","http://opendatacommunities.org/id/metropolitan-district-council/wolverhampton","719947","Street Eats Food","137897","708.90","Provisions (Resale)","130197346","06/12/2017","Catering","Civic Centre Catering","R4102"
"Wolverhampton City Council","http://opendatacommunities.org/id/metropolitan-district-council/wolverhampton","719947","Street Eats Food","149360","817.78","Provisions (Resale)","130197510","21/12/2017","Catering","Civic Centre Catering","R4102"
"Wolverhampton City Council","http://opendatacommunities.org/id/metropolitan-district-council/wolverhampton","719947","Street Eats Food","149146","199.94","Provisions (Resale)","130197506","21/12/2017","Leisure Services","WV Active Catering - Central","R4102"
"Wolverhampton City Council","http://opendatacommunities.org/id/metropolitan-district-council/wolverhampton","719949","PurePromoter Ltd T/A Pure360","201038","224.00","Marketing \ Non-staff advertising","130196469","06/12/2017","Visitor Economy","Audience Development","R4317"
"Wolverhampton City Council","http://opendatacommunities.org/id/metropolitan-district-council/wolverhampton","719976","Cheviot Recruitment Ltd","57767","1,440.00","Agency Staff","130196197","06/12/2017","Human Resources","Occupational Health","R1100"
"Wolverhampton City Council","http://opendatacommunities.org/id/metropolitan-district-council/wolverhampton","720007","Primary Capital Horizons Ltd","348","14,560.00","Services - Consultants","130197515","20/12/2017","Corporate Asset Management","Assets Service Transformation Programme","R4404"
